{"text_format":"1","workbook":"xlsx","n_sheets":9,"sheets":["Events","eVars","Props","Issues","Opportunities","s_code","page_code_sample","QA_Charles_Scrapping","AnF"],"not_rendered":{"charts":0,"images":2,"macros":1,"external_links":0,"defined_names":7,"comments":0,"pivot_tables":0},"unopened":[],"bounds":{"document_bytes":16777216,"sheet_cells":100000,"rows_first":2000,"rows_last":500,"rows_between":2000,"halvings":0,"cell_chars":16384,"cell_head_chars":4096},"cells_cut":0,"cells_raw":0,"read":"whole","date_system":"1900"}

{"sheet":"Events","index":0,"n_rows":90,"n_cols":10,"rows_kept":90,"cut":false,"hidden":false,"merged":[[0,0,0,8]]}
["Abercrombie & Fitch Events"]
["Variable","Name","Where Found","Description","Source","Call Type","Set","Notes","Event Type","*New or Updated variables"]
["prodView","Product Views",null,null,"page code","pageview","pdp","s.events=\"prodView\"","Counter","*s_code indicates something in Products string, but I did not complete a transaction so what exactly this represents is unknown."]
["scOpen","Cart Opens",null,"Event to identify when a new Cart is started","page code","pageview",null,"s.events=\"scOpen\"; Only set on first item added to a cart","Counter"]
["scAdd","Cart Adds","from Product Detail page; Top Nav Wish List dropdown; ","Event to identify an item added to tshopping cart","page code","pageview",null,"s.events=\"scAdd\"","Counter"]
["scView","Cart Views",null,"Views of the Shopping Cart","page code","pageview","cart page","s.events=\"scView\"","Counter"]
["scCheckout","Checkouts",null,null,"page code","pageview","checkout","s.events=\"scCheckout\"","Counter"]
["s.products=;prodId;units;revenue","Revenue",null,null,"page code","pageview","checkout","s.products=\";prodId;units;revenue\"","Currency"]
["s.products=;prodId;units;revenue","Units",null,null,"page code","pageview","checkout","s.products=\";prodId;units;revenue\"","Numeric"]
["purchase","Orders",null,null,"page code","pageview","checkout","s.events=\"purchase\"","Counter"]
["event1","Internal Search","search term: shirt",null,"page code","pageview","internal search",null,"Counter"]
["event2","Internal Null Search","search term: keystone","provide count of searches which had zero results","page code","pageview","internal search",null,"Counter"]
["event3","Email Opt Outs",null,"Removed in favor of eVar",null,null,null,null,"Counter"]
["event4","Email Unsubscribes ","Profile - email settings",null,"page code","link","profile",null,"Counter"]
["event5","Account Creations","Registration process",null,"page code","pageview","registration","This should fire on all Registrations, regardless of area.","Counter"]
["event6"]
["event7","Products String Related*"]
["event8","Navigation Link",null,"Tracks clicks on the various navigation menus","page code","link","set globally",null,"Counter"]
["event9"]
["event10"]
["event11","Product View - Custom","Click 'Quick View' over item on Product Grid page; on Product Detail page when hover over product shot and a Magnigfying view activates (only fires on hover once per page view), fires every time you click on the magnify view;",null,"page code","pageview","pdp",null,"Counter"]
["event12"]
["event13","Shipping Information","fire on first step of Checkout process",null,"page code","pageview","checkout",null,"Counter"]
["event14","Shipping Method","fire on first step of Checkout process",null,"page code","pageview","checkout",null,"Counter"]
["event15","Payment Information","fire on second step of Checkout process",null,"page code","pageview","checkout",null,"Counter"]
["event16","Order Review",null,null,null,null,null,null,"Counter"]
["event17","Logins",null,null,null,null,null,null,"Counter"]
["event18","Local Currency",null,null,"page code","pageview","checkout",null,"Currency"]
["event19","Quick View - Product View","Click 'Quick View' over item on Product Grid page",null,"s_code","link","product catalog overlay",null,"Counter"]
["event20","Share Location",null,"Allow sharing of location based info.","page code","link","Club check-In page, Store Locator",null,"Counter"]
["event21"]
["event22"]
["event23"]
["event24"]
["event25"]
["event26"]
["event27"]
["event28"]
["event29"]
["event30","Email Sign Up","during Step 2 of Registation process; Profile - email settings","Count of email subscriptions","page code","pageview","registration, profile","fire on ","Counter"]
["event31"]
["event32","Email SU - Abercrombie","during Step 2 of Registation process; when opting in via Profile section; fires when opting in via footer. Also fires when you simply adjust the frequency of the emails in the Profile section (see issues).","removed in favor of eVar, so only 1 Event is needed (event30) with different emails signed-up for captured in eVar.",null,null,null,null,"Counter"]
["event33","Errors","fires on forms with fields which have bad data; will fire for each field with an issue, so can fire numerous times for a single Submit click.","Count of form submissions with errors","page code","pageview","forms",null,"Counter"]
["event34"]
["event35"]
["event36","Model View","From A&F Looks page, click on 'Modal View' in Products section.","From A&F Looks page, click on 'Modal View' in Products section.","page code","link","A&F Looks page",null,"Counter"]
["event37","Click Color Swatches","Quick View Product Overlay; On Product Detail page Magnify overlay;",null,"page code","link","pdp, overlays","See Issues #6","Counter"]
["event38","Units Added","fires as part of Products String when adding from Product Details page.","count of units added when scAdd fires","page code","pageview","scAdd",null,"Counter"]
["event39"]
["event40","Account Creation - Unsuccessful",null,"captured with Event33 and associated eVar",null,null,null,null,"Counter"]
["event41","Log In - Unsuccessful",null,"captured with Event33 and associated eVar",null,null,null,null,"Counter"]
["event42"]
["event43","Email SU - Hollister",null,"removed in favor of eVar, so only 1 Event is needed (event30) with different emails signed-up for captured in eVar.",null,null,null,null,"Counter"]
["event44","Email SU - MA kids",null,"see above",null,null,null,null,"Counter"]
["event45","Email SU - MA Gilly",null,"see above",null,null,null,null,"Counter"]
["event46","SMS SU - Abercrombie","Fired on Step 2 of Registration","Combine events 46, 47 & 53, put types into eVar","page code","pageview","registration, profile","See Issues #5","Counter"]
["event47","SMS SU - Hollister","Fired on Step 2 of Registration","see above",null,null,null,"See Issues #5","Counter"]
["event48","Pref Card Used","during checkout",null,"page code","pageview","checkout",null,"Counter"]
["event49","Share Facebook","Share item on Wish List Details page","Set a single Event for Social Shares, put Type into an eVar","page code","link","set globally","eVar15=share facebook' recorded at same time. See Issues #13, #14.","Counter"]
["event50","Share Twitter","Share item on Wish List Details page",null,null,null,null,"eVar15=share facebook' recorded at same time. See Issues #13, #14.","Counter"]
["event51","Share - Email to Friend","From Wish List Details page;",null,null,null,null,"See Isses #12","Counter"]
["event52"]
["event53","SMS SU - Gilly",null,"Combine events 46, 47 & 53, put types into eVar",null,null,null,null,"Counter"]
["event54","SMS UNSUB","Profile - email settings",null,"page code","link","profile","See Issues #5","Counter"]
["event55","Check-in to Club","On Passport page within Club section",null,"page code","link","Club Check-In page","Must have device location sharing enabled.","Counter"]
["event56","Login","The Club section",null,"page code","link","login page","Fires when you log into the site via the Club homepage. Fires if you enter the site directly to the Club section and are cookied in.","Counter"]
["event57","Creat Account via The Club","The Club section","Rolled into Event 5, with Type populated in eVar16",null,null,null,"Event5 also fires at the same time.","Counter"]
["event58"]
["event59"]
["event60"]
["event61"]
["event62"]
["event63"]
["event64"]
["event65"]
["event66"]
["event67"]
["event68"]
["event69"]
["event70"]
["event71"]
["event72"]
["event73"]
["event74"]
["event75"]
["event76"]
["event77"]
["event78"]
["event79"]
["event80"]

{"sheet":"eVars","index":1,"n_rows":82,"n_cols":12,"rows_kept":82,"cut":false,"hidden":false,"merged":[[0,0,0,10]]}
["Abercrombie & Fitch Event Variables"]
["Variable","CC","Name","Type","Description","Source","Call Type","Set","Conditions","Setting Examples","Note","*New or Updated variables"]
["products",null,"Products","Text String",null,"page code","pageview","PDP, cart, checkout",null,null,null,"*s_code indicates something in Products string, but I did not complete a transaction so what exactly this represents is unknown."]
["purchaseID",null,"Purchase ID","Text String","ID of an order","page code","pageview","checkout"]
["state",null,"State ","Text String",null,"page code","pageview","set globally"]
["zip",null,"Zip","Text String",null,"page code","pageview","set globally"]
["campaign",null,"Tracking Code","Text String",null,"s_code","pageview","set globally",null,null,"Prefaces "]
["eVar1","prop4","Site","Text String","included in pagenames","page code","pageview, links","set globally",null,null,"Different # for Abercrombie, Hollister, Gilly's"]
["eVar2","prop5","Country","Text String","identify country of activity","page code","pageview, links","set globally"]
["eVar3",null,"User Status","Text String","Logged In/Out status","page code","pageview, links","set globally",null,"Anonymous,\nRemembered"]
["eVar4",null,"Currency Code","Text String",null,"page code","pageview, link","set globally"]
["eVar5",null,"Merchandising Category","Text String","Track when visitor is in Product Catalog","page code","pageviews","page specific",null,"Browse,\nNon-Browse"]
["eVar6"]
["eVar7",null,"A/B Test1","Text String",null,"s_code","pageviews","page specific",null,null,"s.eVar7 = $.cookie('langABTest');"]
["eVar8"]
["eVar9"]
["eVar10",null,"Email Campaign Link ID","Text String",null,"s_code","pageviews","set globally",null,null,"s.eVar10=s.getQueryParam('linkid'); getValOnce()"]
["eVar11","prop32","Visitor ID","Text String","Web Sphere ID#","s_code","pageview","set globally",null,null,"s.eVar11=s.getQueryParam('vid'); getValOnce()"]
["eVar12",null,"Campaign Channel","Text String","Sets the Marketing Channel  for a Campaign","s_code","pageview","set globally",null,null,"s.channelManager()"]
["eVar13",null,"Internal Campaign","Text String",null,"s_code","pageview","set globally",null,null,"s.eVar13=s.getQueryParam('icmp')"]
["eVar14","prop25","Internal Search Term","Text String","Term entered during a Search event.","s_code","pageview","onsite search"]
["eVar15",null,"Email Registration Opt-in","Text String","Yes/No on email opt-in during the Registration Event","page code","pageview","registration"]
["eVar16",null,"Registration Type","Text String","What Section registration occurred in","page code","pageview","registration",null,"Club,\neComm"]
["eVar17",null,"Email SU Type","ListVar","Which emails brands subscribed to","page code","pageview","registration, profile"]
["eVar18",null,"SMS SU Type","ListVar","Which SMS brands subscribed to","page code","pageview","registration, profile"]
["eVar19",null,"Share Type","Text String","Channel of a Share Event","page code","lnk","on Share Event"]
["eVar20",null,"Search Trigger","Text String",null,"page code","pageview","onsite search"]
["eVar21",null,"Payment Method","Text String",null,"page code","pageview","checkout"]
["eVar22",null,"Product Finding Method","Text String",null,"page code","pageview","checkout",null,null,"internal campaign; external campaign; browse"]
["eVar23",null,"Email Unsubscribe Type","ListVar","Which emails brands unsubscribed from","page code","pageview","profile"]
["eVar24",null,"SMS Unsubscribe Type","ListVar","Which SMS brands unsubscribed from","page code","pageview","profile"]
["eVar25",null,"Products String Related*"]
["eVar26",null,"Shipping State","Text String",null,"page code","pageview","checkout"]
["eVar27",null,"Shipping Zip Code","Text String",null,"page code","pageview","checkout"]
["eVar28",null,"Quickshop vs Normal Flow","Text String","Track which payment flow is followed","page code","pageview","checkout",null,null,"Quick Shop/View fires"]
["eVar29","prop29","Time of Day","Text String",null,"s_code","pageview, links","set globally",null,null,"parsed into 1/2 hour increments"]
["eVar30",null,"Order Number","Text String",null,"page code","pageview","checkout",null,null,"s.purchaseID"]
["eVar31",null,"Marketing Channel: Keyword","Text String","Track Keywords used for incoming Search Engine traffic","page code","pageview","set globally",null,null,"Search Keyword from both Natural and Paid search"]
["eVar32",null,"Promo Code","Text String",null,"page code","pageview","checkout"]
["eVar33",null,"Same Shipping and Billing","Text String",null,"page code","pageview","checkout"]
["eVar34",null,"Shipping Country","Text String",null,"page code","pageview","checkout"]
["eVar35",null,"Billing Country","Text String",null,"page code","pageview","checkout"]
["eVar36",null,"Checkout Type","Text String",null,"page code","pageview","checkout"]
["eVar37",null,"Check-In Store #","Text String","ID of store where a visitor does a Check-in to (Event 55)"]
["eVar38",null,"Shipping Type on checkout","Text String",null,"page code","pageview","checkout"]
["eVar39",null,"Recipient ID","Text String",null,"page code","pageview","checkout"]
["eVar40"]
["eVar41",null,"Checkout Overlay","Text String",null,"page code","pageview","checkout"]
["eVar42",null,"Navigation Link Name","Text String","Area and link name of navigation click","page code","link","set globally",null,"\"header>welcome back:sign out\"","Should set the area (header, footer, left) and the heirarchy of the link. "]
["eVar43"]
["eVar44"]
["eVar45"]
["eVar46","prop40","Page Name","Text String","Copy of pagename, to allow correlations with link clicks","pagecode","link","on link clicks"]
["eVar47"]
["eVar48"]
["eVar49"]
["eVar50"]
["eVar51",null,"Gift Box on Checkout","Text String",null,"page code","pageview","checkout"]
["eVar52"]
["eVar53",null,"Author Code","Text String",null,"page code","pageview","set globally",null,null,"s.getQueryParam('authcode')"]
["eVar54"]
["eVar55",null,"Billing City","Text String",null,"page code","pageview","checkout"]
["eVar56",null,"Shipping City","Text String",null,"page code","pageview","checkout"]
["eVar57",null,"Check Out Edit/Remove","Text String","Determine previous page for each page.","s_code","pageview","set globally"]
["eVar58",null,"Time to Complete Purchase",null,"Time passed between scCheckout and Purchase events","s_code","pageview","checkout",null,null,"From scCheckout to Purchase events. "]
["eVar59"]
["eVar60"]
["eVar61"]
["eVar62"]
["eVar63",null,"ID#?","Text String",null,"page code","pageview","set globally"]
["eVar64","prop22","Previous Page","Text String",null,"s_code","pageview, link","set globally",null,null,"s.getPreviousValue(s.pageName,'sc_prevpage',''). See Issue #24"]
["eVar65",null,"Number of Searches","Counter","count of session searches","s_code","pageview","internal search"]
["eVar66",null,"Number of Searches LT","Counter","count of visitor searches","s_code","pageview","internal search"]
["eVar67","prop26","Visit Number ","Text String","s_code","pageview","set globally",null,null,null,"s.getVisitNum()"]
["eVar68","prop27","Day of Week","Text String","s_code","pageview, links","set globally"]
["eVar69",null,"Gender","Text String",null,"page code","link","event specific",null,null,"During Email Sign-up in Footer; didn't see this populated during email opt-in during Registration"]
["eVar70"]
["eVar71"]
["eVar72"]
["eVar73",null,"Model View","Product Features",null,"page code","pageview","page specific",null,null,"Set as a link_o. See Issues #9, #10"]
["eVar74"]
["eVar75",null,"s_vi","Text String",null,"s_code","pageview, link","set globally",null,null,"Visitor ID"]

{"sheet":"Props","index":2,"n_rows":57,"n_cols":14,"rows_kept":57,"cut":false,"hidden":false,"merged":[[0,0,0,12]]}
["Abercrombie & Fitch Traffic Variables"]
["Variable","CC","Name","Description","Source","Type of Call","Set","Conditions","Setting Examples","Pathing","Notes",null,null,"*New or Updated variables"]
["pageName",null,"Pages","Allows tracking of page views/visits, as well as page pathing.","page code","pageview","all pages",null,null,"Yes",null,null,null,"*s_code indicates something in Products string, but I did not complete a transaction so what exactly this represents is unknown."]
["channel",null,"Site Sections","Track traffic to sections of site, as well as pathing between sections.","page code","pageview, links","all pages",null,null,"Yes",null,null,"=s.prop1"]
["server",null,"Server",null,"s_code","pageview","set globally",null,null,null,null,"no data"]
["pageType",null,"Pages Not Found","decide type of page, with pathing","page code","pageview","all pages",null,null,null,null,"no data"]
["prop1",null,"Category","section of site","page code","pageview, links","all pages",null,null,"Yes",null,"an:us:womens"]
["prop2",null,"Sub Category","sub-section of prop1","page code","pageview, links","all pages",null,null,"Yes",null,"an:us:womens","See Issues #17"]
["prop3",null,"Page Type",null,"page code","pageview","page specific"]
["prop4","eVar1","Site","used to decide report suite, included in pagenames","page code","pageview, links","set globally"]
["prop5","eVar2","Country","identify country of activity","page code","pageview, links","set globally"]
["prop6",null,"Category ID","Identify what section of Product Catalog","page code","pageview","page specific",null,null,null,null,"numeric id","See Issues #18"]
["prop7",null,"Parent Category ID","Identify what section of Product Catalog","page code","pageview","page specific",null,null,null,null,"numeric id","See Issues #18"]
["prop8"]
["prop9"]
["prop10"]
["prop11"]
["prop12",null,"Error Previous Page","Identify where errors are originating","page code","pageview","page specific"]
["prop13",null,"User Errors","Identify which form fields were empty or incorrect. Uses listprop, since there can be a number of variables set for each form?","page code","link","link specific","List Prop; concatenate all missing/error fields into one comma seperated string.","missing required fields - lastname, invalid field - password",null,null,"in conjunction with Event33; fires for each field with an error"]
["prop14"]
["prop15",null,"Product Features","Identify how often different site functionalities are used. ","page code","link","feature specific",null,null,"Yes?",null,"Clicked 'Add to Wish List' on Product Details page; 'Modal View' and 'Product View' options on A&F Looks page; click on item from the Top Nav Wish List dropdown - Add to Bag, Edit ; clicking Print buttons;","Set as a link_o. See Issues #9, #10, #11"]
["prop16",null,"New vs Return","Indicates if the visitor has been to the site before.","s_code","pageview,link","set globally",null,null,null,null,null,"s.getNewRepeat()"]
["prop17",null,"Language ID",null,"page code","pageview,link","set globally",null,null,null,null,null,"Not always available in query string. Not a user friendly value - English is '-1'"]
["prop18"]
["prop19"]
["prop20"]
["prop21",null,"PDP Collection ID","Track traffic to Product Collections","page code","pageview","page specific"]
["prop22","eVar64","Previous Page","Determine previous page for each page.","s_code","pageview","set globally",null,null,null,null,null,"s.getPreviousValue(s.pageName,'sc_prevpage',''). See Issue #24"]
["prop23",null,"Previous Page Name Global","Determine previous page for each page, removing the country code from pagename.","s_code","pageview","set globally"]
["prop24",null,"Search Results","Number of results returned for a search.","s_code","pageview","onsite search",null,null,null,null,null,"count of results; 'no search results' if zero"]
["prop25","eVar14","Search Phrase","Term entered during a Search event.","s_code","pageview","onsite search",null,null,"Yes"]
["prop26","eVar67","Visit Number","Indicates the total number of Visits the visitor has been to the site.","s_code","pageview","set globally",null,null,null,null,null,"getVisitNumber()"]
["prop27","eVar68","Day of Week",null,"s_code","pageview, links","set globally"]
["prop28",null,"Preferred Store"]
["prop29","eVar29","Time of Day",null,"s_code","pageview, links","set globally",null,null,null,null,null,"parsed into 1/2 hour increments"]
["prop30",null,"Page URL","full URL of the page","s_code","pageview","set globally"]
["prop31",null,"JS File Version",null,"s_code","pageview","set globally"]
["prop32","eVar11","Visitor ID","Web Sphere ID#","s_code","pageview","set globally"]
["prop33"]
["prop34"]
["prop35",null,"Page Viewed %","Identify what percent of previous page was viewed","s_code","pageview","all next pages",null,null,null,null,null,"s.getPercentPageViewed()"]
["prop36"]
["prop37"]
["prop38"]
["prop39",null,"Color selected in Product Slider",null,"pagecode","link","on color swatch selection",null,null,null,null,"Mens Category landing page. Selected color from slider.","Set as a link_o, where linkname is 'slider'."]
["prop40","eVar46","pagename","Copy of pagename, to allow correlations with link clicks","pagecode","link","on link clicks",null,null,null,null,"Set on pageviews and link_o calls within the Club section","See Issue #24."]
["prop41"]
["prop42"]
["prop43"]
["prop44"]
["prop45"]
["prop46"]
["prop47"]
["prop48"]
["prop49"]
["prop50"]
["hier1"]

{"sheet":"Issues","index":3,"n_rows":99,"n_cols":2,"rows_kept":99,"cut":false,"hidden":true,"merged":[[1,0,1,1]]}
[]
["Issues"]
[1,"On 'Save' click for Registration Step 2, 4 separate tags fired. The first had Event47, the second Event46, the third had all the same props and eVars as the first two but without any Events; the fourth had the same as the third except for prop9 was populated instead of prop35."]
[{"$f":"IF(B4<>\"\",A3+1,\"\")","v":2},"Tried to Register again. Got to Step 2, selection at least one option from each section, but the 'Save' button wouldn't activate. Eventually clicked the 'continue shopping' link, and after page_load the header indicated I was still logged in. Signed out then back in and the options I had checked on Step 2 were not selected in my profile. Finally got registratration Step 2 to save as long as I didn't check the 'Text' box."]
[3,"Went to the Change Address page in the Profile section. Updated address, but when I clicked SAVE two page tags fired, with all the same info except for the Previous Page prop, where the second tag listed the Address page."]
[4,"An Event fires when you opt-in for email on the My Info-Email&Phone page in the Profile section. What is weird is the Sign-up Event also fires if you change the frequency of an email from Weekly to Monthly. Fires even if you choose the same frequency option."]
[5,"An Event fires when you opt-in for SMS, even if you opt-in to an option you are already signed up for. Also, the Unsub Event will trigger if you click the Unsub option even if you were never opted in to begin with."]
[6,"Event37 fires on a click of a color swatch on the Quick View overlay, and the Products string is populated with the item#. A click on the square of color fires a single tag correctly. But when you click on the arrow of the color dropdown list it also fires the Event, with an empty Products string. When you select a color from the dropdown two tags fire, on with the correct Event# and Products string, but the second has the Event# with an empty Products string. The Event should NOT fire on the dropdown arrow, and only one tag should fire for the list selection. Odd that the clicks of Color Swatches on the regular Product View page are not recorded. This issue does not occur on the Product Details page Magnify overlay."]
[7,"When you select the 'No emails/Unsubscribe' option from the dropdown menu on the Profile - Email & Phone page, then hit the Submit button Event4 (Email Unsubscribes) fires. The issues are twofold: 1) You don't event need to be subscribed to have the event fire. 2) It fires once, regardless if you Unsub from one brand's email for from multiple brands. 3) No record is made of which brand email you are unsubsribing from, even though there are seperate Events for each Brand signup."]
[{"$f":"IF(B10<>\"\",A9+1,\"\")","v":8},"Event5 fired on Registration click even though there was an error with a field requirement. Only recorded this Event during the first try, once I logged out subsequent registrations during the same Vist didn't record this Event. Tried again later, but found this to be inconsistent."]
[{"$f":"IF(B11<>\"\",A10+1,\"\")","v":9},"On the A&F Looks pages within the Products sections there is sometimes the option for 'Product View' and 'Modal View'. For some labeled 'Product View' prop15 is capturing 'Modal View'."]
[10,"On the A&F Looks pages within the Products sections there is Twitter button. Pressing this fires an exit link, but not the Event50 Share Twitter event, but it does populate prop15 and eVar73 with 'Modal View'."]
[11,"Removing an item from the Wish list via the Top Nav Wish List dropdown fires a link_o with prop15 set to 'remove wishlist', this also fires when the Add to Bag link on this dropdown is clicked (as the item is removed/transferred to the shopping cart). But if you click the 'remove' link on the Wish List Details page no tag is fired for prop15."]
[12,"When the 'Send' button is clicked on the Wish List Details page to Share the item via email Event51 fires even if there is an error with the form fields which prevents the email from sending."]
[13,"The Share Facebook Event49 fires on button click, not on successful share. Ideally you would want this to fire on the success event, not the intent event."]
[14,"When the Share Facebook/Twitter Events(49,50) fire, an additional Page tag fires also. Both the link_e and the page tag contain the Event and prop15 values."]
[15,"On the Profile - About Me page when you click the Submit button a page tag fires(sometimes two page tags would fire) with nothing more than what appears to be the same info than the original page_load tag."]
[16,"On the Profile - Address Book page when you click the Save the page will reload and fire two separate page tags. The differenc in the tag is eVar64 (Previous Page) and the first will have ClickMap data. "]
[17,"When looking at a page at the Category (prop1) level, prop2 does not include the country code. Example: Womens Landing page 'prop1=anf:us:womens', 'prop2=anf:womens'. But if you drill down into a page within this Category: Womens>New Arrivals page 'prop1=anf:us:womens', 'prop2=and:us:womens:new arrivals'; note the inclusion of the country code in the second prop2 version."]
[18,"When looking at the Product Catalog prop6 seemed to indicate a Category ID# and prop7 a Parent Category ID#. Prop7 was populated when you get to the third level (womens>tops>tanks). There was inconsistency as to what ID# were captured at each level. Example of drill down: Womens Main page - prop6=12203; Womens>Tops - prop6=12275, prop7=12275; Womens>Tops>Tees & Tanks - prop6=12270, prop7=12275; Womens>Tops>Tees & Tanks>Tanks - prop6=79122, prop7=12275. "]
[19,"Sub-domain, theclub.abercrombie.com, has the data going into the same report suite as abercrombie.com. Yet it uses separate events for Registration and Logins."]
[20,"The A@F Club landing page has 3 'tabs' - Sign In, Join, Benefits. Each tab fires a separate page tag when clicked, yet the only thing which changes is a small area in the center of the page. This tagging setup can cause some challenges and confusion with reporting. Example: If a visitor comes to the page (defaults to Sign In tab) and clicks on the Benefits tab then leaves the site, they are no longer considered a Bounce as two page tags have fired. Most people would not reasonably consider these tabs seperate 'pages', so their is a high potential for confusion and misinterpretation on the metrics."]
[21,"None of the Navigational links are tagged. This is missed oppurtunity to easily learn the popularity and usefullness of the navigation design. It also hampers the opportunity to build page heat maps."]
[22,"The DEV environment does not always 'abercrombie.' in the URL, but since the linkInternalFilters only has that value testing caused a bit of confusion with extra exit link tags firing off. "]
[23,"Some pages, such as Reset Password reached via the Remind Me email, do not have Omniture code. They do have GA code from an earlier implementation."]
[24,"When a navigation link is clicked within the Club section it is tracked as a custom link. On the resulting page prop40 is set to the links name instead of the pagename. Also, the resulting page will have eVar64 and prop22 (Previous Page) set to 'no value'."]
[""]
[""]
[""]
[""]
[""]
[""]
[""]
[""]
[""]
[""]
[""]
[""]
[""]
[""]
[""]
[""]
[""]
[""]
[""]
[""]
[""]
[""]
[""]
[""]
[""]
[""]
[""]
[""]
[""]
[""]
[""]
[""]
[""]
[""]
[""]
[""]
[""]
[""]
[""]
[""]
[""]
[""]
[""]
[""]
[""]
[""]
[""]
[""]
[{"$f":"IF(B75<>\"\",A74+1,\"\")","v":""}]
[""]
[""]
[""]
[""]
[""]
[""]
[""]
[""]
[""]
[""]
[""]
[""]
[""]
[""]
[""]
[""]
[""]
[""]
[""]
[""]
[""]
[""]
[""]
[""]

{"sheet":"Opportunities","index":4,"n_rows":3,"n_cols":2,"rows_kept":3,"cut":false,"hidden":true,"merged":[]}
[]
[null,"Did not capture 'Share Location' on Find a Store page"]
[null,"Not capturing Shares on Experience A&F Video"]

{"sheet":"s_code","index":5,"n_rows":541,"n_cols":1,"rows_kept":541,"cut":false,"hidden":true,"merged":[]}
["                                /* SiteCatalyst code version: H.22.1."]
["Copyright 1996-2011 Adobe, Inc. All Rights Reserved"]
["More info available at http://www.omniture.com */"]
["/************************ ADDITIONAL FEATURES ************************"]
["     Plugins"]
["*/"]
[]
["var s_account=\"afabercrombieprod\";"]
[]
["var s_domain=window.location.host;"]
["if(s_domain.indexOf('m.abercrombie.com')>-1)"]
["        s_account=\"afabercrombiemobileprod\";"]
["        "]
["var s=s_gi(s_account)"]
["/************************** CONFIG SECTION **************************/"]
["/* You may add or alter any code config here. */"]
["/* Conversion Config */"]
["s.currencyCode=\"USD\""]
["/* Link Tracking Config */"]
["s.trackDownloadLinks=true"]
["s.trackExternalLinks=true"]
["s.trackInlineStats=true"]
["s.linkDownloadFileTypes=\"exe,zip,wav,mp3,mov,mpg,avi,wmv,pdf,doc,docx,xls,xlsx,ppt,pptx\""]
["s.linkInternalFilters=\"javascript:,abercrombie.\""]
["s.linkLeaveQueryString=false"]
["s.linkTrackVars=\"eVar1\""]
["s.linkTrackEvents=\"None\""]
["/* Plugin Config */"]
["s.usePlugins=true"]
[]
["s.successfulSearchEvent                 = 'event1';"]
["s.nullSearchEvent                       = 'event2';"]
["s.searchTermVariable                  = 'eVar14';"]
[]
["s._channelPattern=\"Email|EMM>Paid Search|PDS>Facebook|fb>Twitter|TW>SMS|SMS\";"]
[]
["/* Optional config variables Dynamic Link IDs */"]
["function s_getObjectID(o) {"]
["/*"]
[" * Utility Function: split v1.5 (JS 1.0 compatible)"]
[" */"]
["s.split=new Function(\"l\",\"d\",\"\""]
[{"$f":"+\"var i,x=0,a=new Array;while(l){i=l.indexOf(d);i=i>-1?i:l.length;a[x\"","v":"var i,x=0,a=new Array;while(l){i=l.indexOf(d);i=i>-1?i:l.length;a[x"}]
["+\"++]=l.substring(0,i);l=l.substring(i+d.length);}return a\");"]
[]
["        var m=(!(s._dynamicObjectIDs_URLMatch))?s.split(s._dynamicObjectIDs_URLMatch,','):'',n=!(!(s._dynamicObjectIDs_Include)),v=s.split(s._dynamicObjectIDs_RemoveQSP,','),w,j,k=true,ID=o.href;"]
["        if(m.length>0)"]
["                for(j=0;j<m.length&&k;j++){"]
["                        k=((!n&&ID.indexOf(m[j])<0)||(n&&ID.indexOf(m[j])>-1));"]
["                        if(!k)ID='';"]
["                }"]
["        for(w=0;w<v.length;w++){"]
["                ID=ID.replace(new RegExp('&'+v[w]+'=[^&]*','i'),'');ID=ID.replace(new RegExp('\\\\?'+v[w]+'=[^&]*&','i'),'?');"]
["        } "]
["        return ID;}"]
[]
["s.getObjectID=s_getObjectID;"]
[]
["s._dynamicObjectIDs_URLMatch = '' // Default ''"]
["s._dynamicObjectIDs_Include = false // Default false"]
["s._dynamicObjectIDs_RemoveQSP = 'catalogId,storeId' //Default ''"]
[]
[]
["function s_doPlugins(s) {"]
["        /* Add calls to plugins here */"]
["    /* error Page Anaylysis */          "]
["    s.prevPage=s.getPreviousValue(s.pageName,\"prevPage\");"]
["    if(s.pageName==\"404 error page\"){"]
["        s.prop12=s.prevPage;"]
["    }"]
[]
["    /* Campaign Tracking */"]
["        s.channelManager('mid,cmp,utm_campaign','','sc_cm');"]
["        if(s._channel==\"Typed/Bookmarked\" || (s._campaign && s._campaign.indexOf('paypal')>-1))"]
["                s._channel=s._keywords=s._campaign=\"\";"]
["        s.campaign=s._campaign;"]
["        s.eVar31=s._keywords;"]
["        s.eVar12=s._channel;"]
["        if(s._channel==\"Natural Search\")"]
["                s.campaign=\"seo:\"+s._campaign;"]
["        if(s._channel==\"Other Natural Referrers\")"]
["                s.campaign=\"nsref:\"+s._campaign;"]
["        "]
["        "]
["    if (!s.eVar10) {s.eVar10=s.getQueryParam('linkid');"]
["                s.eVar10=s.getValOnce(s.eVar10, 's_linkid',0)}"]
["    if (!s.eVar11) {s.eVar11=s.getQueryParam('vid');"]
["                s.eVar11=s.getValOnce(s.eVar11, 's_vid',0)}"]
[]
["    /* Internal Campaigns */"]
["    if(!s.eVar13)"]
["        s.eVar13=s.getQueryParam('icmp')"]
[]
["    /* Internal Search */"]
["        if(s.eVar14) s.eVar14=s.eVar14.toLowerCase()"]
["        "]
["        /*dedup int search events*/"]
["        var t_search=s.getValOnce(s[s.searchTermVariable],'ev14',0)"]
["        if(t_search=='')"]
["        {       "]
["                var a=s.split(s.events,',');"]
["                var e='';"]
["                for(var i = 0; i < a.length ; i++ )"]
["                {"]
["                        if(a[i] == s.successfulSearchEvent)"]
["                                continue;"]
["                        else if(a[i] == s.nullSearchEvent)"]
["                                continue;"]
["                        else"]
["                                e += a[i]?a[i]+',':a[i];"]
["                }"]
["                s.events=e.substring(0,e.length-1);"]
["        }"]
["        else"]
["        {"]
["                if(!s.products)"]
["                        s.products=';';"]
["        }"]
["       if ((s.eVar14) && (s.eVar14.indexOf('[trigger]') > -1))"]
["          { s.eVar20=s.eVar14.substring(s.eVar14.indexOf('[trigger]')+9,s.eVar14.length);"]
["            s.eVar14=\"\";"]
["          }"]
[]
["    /* Automate Finding Method eVar if not set*/"]
["        if(s.getQueryParam('search-field')||s.getQueryParam('search-field','',document.referrer)){"]
["                s.eVar22='internal search';"]
["                s.eVar5='Non-Browse';"]
["                //s.eVar13='Non-IntCmp';"]
["                s.linkTrackVars=s.apl(s.linkTrackVars,\"eVar22,eVar13,eVar14,eVar15,eVar16,eVar17,eVar18,eVar19,eVar20\",\",\",1);"]
["        } else if(s.eVar5){"]
["                s.eVar22='browse';"]
["                //s.eVar13='Non-IntCmp';"]
["                //s.eVar14=s.eVar15=s.eVar16=s.eVar17=s.eVar18=s.eVar19=s.eVar20='Non-Search';"]
["                s.eVar14='Non-Search';"]
["                s.linkTrackVars=s.apl(s.linkTrackVars,\"eVar22,eVar13\",\",\",1);"]
["        }"]
["        if(s.campaign){"]
["                s.eVar22='external campaign';"]
["                s.eVar5='Non-Browse';"]
["                //s.eVar13='Non-IntCmp';"]
["                //s.eVar14=s.eVar15=s.eVar16=s.eVar17=s.eVar18=s.eVar19=s.eVar20='Non-Search';"]
["                s.eVar14='Non-Search';"]
["        }"]
["        if(s.eVar13&&s.eVar13!='Non-IntCmp'){"]
["                s.eVar22='internal campaign';"]
["                s.eVar5='Non-Browse';"]
["                //s.eVar14=s.eVar15=s.eVar16=s.eVar17=s.eVar18=s.eVar19=s.eVar20='Non-Search';"]
["                s.eVar14='Non-Search';                          "]
["        }"]
["        if(s.eVar22&&s.eVar22.toLowerCase()=='cross-sell'){"]
["                s.eVar5='Non-Browse';"]
["                //s.eVar13='Non-IntCmp';"]
["                //s.eVar14=s.eVar15=s.eVar16=s.eVar17=s.eVar18=s.eVar19=s.eVar20='Non-Search';"]
["                s.eVar14='Non-Search';"]
["        }"]
[]
[]
["        /*Other External Sites*/"]
["        if(document.referrer&&!s.eVar22)"]
["        {"]
["                var filters = s.split(s.linkInternalFilters,',');"]
["                var internalFlag = false;"]
["                var docRef = s.split(document.referrer,'/');"]
["                docRef = docRef[2];"]
["                for(var f in filters)"]
["                {"]
["                        if(docRef.indexOf(filters[f])>-1)"]
["                                internalFlag = true;"]
["                }"]
["                if(!internalFlag)"]
["                        s.eVar22=\"external non-campaign\";"]
["        }"]
[]
["    /* New vs. Return */"]
["     s.prop16 = s.getNewRepeat();"]
["    /* Content Freshness */"]
["    s.prop29 = s.eVar29 = s.getTimeParting('h', '-5'); "]
[]
["    //if (!s.eVar1) s.eVar1=s.prop4;"]
["    if (!s.eVar2) s.eVar2=s.prop5;"]
["        "]
["        if(s.events.indexOf('purchase')>-1&&s.products){"]
["                s.products=s.repl(s.products,'evar25=,',',')    "]
["                s.products=s.repl(s.products,'|,;','--+--')"]
["                s.products=s.repl(s.products,',;','--+--')"]
["                s.products=s.repl(s.products,'event7=0.00|','')"]
["                s.products=s.repl(s.products,'|,','')"]
["                s.products=s.repl(s.products,',','.')"]
["                s.products=s.repl(s.products,'--+--',',;')"]
["        }"]
["        "]
["        /*insure evar1 is set in link requests from page*/"]
["        s.linkTrackVars=s.apl(s.linkTrackVars,\"eVar1\",\",\",1);"]
["        "]
["        s.eVar64=s.prop22=s.getPreviousValue(s.pageName,'sc_prevpage','');"]
["        "]
["        s.eVar68=s.prop27=s.getTimeParting('','-5');"]
["        "]
["        s.eVar67=s.prop26=s.getVisitNum(1825);"]
["        "]
["        /*check on thank you page*/"]
["        if(s.events.indexOf('purchase')>-1){"]
["                s.pageURL=window.location.protocol+'//'+window.location.host;"]
["                s.referrer=window.location.protocol+'//'+window.location.host;"]
["                s.prop1=s.prop2=s.prop3=s.eVar46='D=ch';"]
["                s.eVar29='D=c29';"]
["                s.eVar30=s.purchaseID;"]
["                s.eVar64='D=c22';"]
["                s.eVar68='D=c27';"]
["        }"]
[]
["        /* Get Time to Complete Checkout Process */"]
["        if(s.events.indexOf('scCheckout')>-1)"]
["                s.eVar58='start';"]
[" "]
["        if(s.events.indexOf('purchase')>-1)"]
["                s.eVar58='stop';"]
[]
["        s.eVar58=s.getTimeToComplete(s.eVar58,'ttc',0);"]
[]
["        /* Percent of page viewed */"]
["        s.prop35 = s.getPercentPageViewed();"]
[]
["        /* Grab authcode query parameter */"]
["        s.eVar53=s.getQueryParam('authcode');"]
["        "]
["        /* Copy Visitor ID to eVar */"]
["        s.eVar75=\"D=s_vi\";"]
["        "]
["        /* Dynamic Link ID Plugin */"]
["        s.setupDynamicObjectIDs();"]
["}"]
["s.doPlugins=s_doPlugins"]
["/************************** PLUGINS SECTION *************************/"]
[]
["/*"]
[" * channelManager v2.55 - Tracking External Traffic"]
[" */"]
["s.channelManager=new Function(\"a\",\"b\",\"c\",\"d\",\"e\",\"f\",\"\""]
[{"$f":"+\"var s=this,A,B,g,l,m,p,q,P,h,k,u,S,i,O,T,j,r,t,D,E,F,G,H,N,U,v=0,X,\"","v":"var s=this,A,B,g,l,m,p,q,P,h,k,u,S,i,O,T,j,r,t,D,E,F,G,H,N,U,v=0,X,"}]
[{"$f":"+\"Y,W,n=new Date;n.setTime(n.getTime()+1800000);if(e){v=1;if(s.c_r(e)\"","v":"Y,W,n=new Date;n.setTime(n.getTime()+1800000);if(e){v=1;if(s.c_r(e)"}]
[{"$f":"+\")v=0;if(!s.c_w(e,1,n))s.c_w(e,1,0);if(!s.c_r(e))v=0;}g=s.referrer?s\"","v":")v=0;if(!s.c_w(e,1,n))s.c_w(e,1,0);if(!s.c_r(e))v=0;}g=s.referrer?s"}]
[{"$f":"+\".referrer:document.referrer;g=g.toLowerCase();if(!g)h=1;i=g.indexOf\"","v":".referrer:document.referrer;g=g.toLowerCase();if(!g)h=1;i=g.indexOf"}]
[{"$f":"+\"('?')>-1?g.indexOf('?'):g.length;j=g.substring(0,i);k=s.linkInterna\"","v":"('?')>-1?g.indexOf('?'):g.length;j=g.substring(0,i);k=s.linkInterna"}]
[{"$f":"+\"lFilters.toLowerCase();k=s.split(k,',');for(m=0;m<k.length;m++){B=j\"","v":"lFilters.toLowerCase();k=s.split(k,',');for(m=0;m<k.length;m++){B=j"}]
[{"$f":"+\".indexOf(k[m])==-1?'':g;if(B)O=B;}if(!O&&!h){p=g;U=g.indexOf('//');\"","v":".indexOf(k[m])==-1?'':g;if(B)O=B;}if(!O&&!h){p=g;U=g.indexOf('//');"}]
[{"$f":"+\"q=U>-1?U+2:0;Y=g.indexOf('/',q);r=Y>-1?Y:i;u=t=g.substring(q,r).toL\"","v":"q=U>-1?U+2:0;Y=g.indexOf('/',q);r=Y>-1?Y:i;u=t=g.substring(q,r).toL"}]
[{"$f":"+\"owerCase();P='Other Natural Referrers';S=s.seList+'>'+s._extraSearc\"","v":"owerCase();P='Other Natural Referrers';S=s.seList+'>'+s._extraSearc"}]
[{"$f":"+\"hEngines;if(d==1){j=s.repl(j,'oogle','%');j=s.repl(j,'ahoo','^');g=\"","v":"hEngines;if(d==1){j=s.repl(j,'oogle','%');j=s.repl(j,'ahoo','^');g="}]
[{"$f":"+\"s.repl(g,'as_q','*');}A=s.split(S,'>');for(i=0;i<A.length;i++){D=A[\"","v":"s.repl(g,'as_q','*');}A=s.split(S,'>');for(i=0;i<A.length;i++){D=A["}]
[{"$f":"+\"i];D=s.split(D,'|');E=s.split(D[0],',');for(G=0;G<E.length;G++){H=j\"","v":"i];D=s.split(D,'|');E=s.split(D[0],',');for(G=0;G<E.length;G++){H=j"}]
[{"$f":"+\".indexOf(E[G]);if(H>-1){if(D[2])N=u=D[2];else N=t;if(d==1){N=s.repl\"","v":".indexOf(E[G]);if(H>-1){if(D[2])N=u=D[2];else N=t;if(d==1){N=s.repl"}]
[{"$f":"+\"(N,'#',' - ');g=s.repl(g,'*','as_q');N=s.repl(N,'^','ahoo');N=s.rep\"","v":"(N,'#',' - ');g=s.repl(g,'*','as_q');N=s.repl(N,'^','ahoo');N=s.rep"}]
[{"$f":"+\"l(N,'%','oogle');}i=s.split(D[1],',');for(k=0;k<i.length;k++){l=s.g\"","v":"l(N,'%','oogle');}i=s.split(D[1],',');for(k=0;k<i.length;k++){l=s.g"}]
[{"$f":"+\"etQueryParam(i[k],'',g).toLowerCase();if(l)break;}}}}}if(!O||f!='1'\"","v":"etQueryParam(i[k],'',g).toLowerCase();if(l)break;}}}}}if(!O||f!='1'"}]
[{"$f":"+\"){O=s.getQueryParam(a,b);if(O){u=O;if(N)P='Paid Search';else P='Unk\"","v":"){O=s.getQueryParam(a,b);if(O){u=O;if(N)P='Paid Search';else P='Unk"}]
[{"$f":"+\"nown Paid Channel';}if(!O&&N){u=N;P='Natural Search';}}if(h==1&&!O&\"","v":"nown Paid Channel';}if(!O&&N){u=N;P='Natural Search';}}if(h==1&&!O&"}]
[{"$f":"+\"&v==1)u=P=t=p='Typed/Bookmarked';g=s._channelDomain;if(g){k=s.split\"","v":"&v==1)u=P=t=p='Typed/Bookmarked';g=s._channelDomain;if(g){k=s.split"}]
[{"$f":"+\"(g,'>');for(m=0;m<k.length;m++){q=s.split(k[m],'|');r=s.split(q[1],\"","v":"(g,'>');for(m=0;m<k.length;m++){q=s.split(k[m],'|');r=s.split(q[1],"}]
[{"$f":"+\"',');S=r.length;for(T=0;T<S;T++){Y=r[T].toLowerCase();i=j.indexOf(Y\"","v":"',');S=r.length;for(T=0;T<S;T++){Y=r[T].toLowerCase();i=j.indexOf(Y"}]
[{"$f":"+\");if(i>-1)P=q[0];}}}g=s._channelParameter;if(g){k=s.split(g,'>');fo\"","v":");if(i>-1)P=q[0];}}}g=s._channelParameter;if(g){k=s.split(g,'>');fo"}]
[{"$f":"+\"r(m=0;m<k.length;m++){q=s.split(k[m],'|');r=s.split(q[1],',');S=r.l\"","v":"r(m=0;m<k.length;m++){q=s.split(k[m],'|');r=s.split(q[1],',');S=r.l"}]
[{"$f":"+\"ength;for(T=0;T<S;T++){U=s.getQueryParam(r[T]);if(U)P=q[0];}}}g=s._\"","v":"ength;for(T=0;T<S;T++){U=s.getQueryParam(r[T]);if(U)P=q[0];}}}g=s._"}]
[{"$f":"+\"channelPattern;if(g){k=s.split(g,'>');for(m=0;m<k.length;m++){q=s.s\"","v":"channelPattern;if(g){k=s.split(g,'>');for(m=0;m<k.length;m++){q=s.s"}]
[{"$f":"+\"plit(k[m],'|');r=s.split(q[1],',');S=r.length;for(T=0;T<S;T++){Y=r[\"","v":"plit(k[m],'|');r=s.split(q[1],',');S=r.length;for(T=0;T<S;T++){Y=r["}]
[{"$f":"+\"T].toLowerCase();i=O.toLowerCase();H=i.indexOf(Y);if(H==0)P=q[0];}}\"","v":"T].toLowerCase();i=O.toLowerCase();H=i.indexOf(Y);if(H==0)P=q[0];}}"}]
[{"$f":"+\"}X=P+l+t;c=c?c:'c_m';if(c!='0')X=s.getValOnce(X,c,0);if(X){s._refer\"","v":"}X=P+l+t;c=c?c:'c_m';if(c!='0')X=s.getValOnce(X,c,0);if(X){s._refer"}]
[{"$f":"+\"rer=p?p:'n/a';s._referringDomain=t?t:'n/a';s._partner=N?N:'n/a';s._\"","v":"rer=p?p:'n/a';s._referringDomain=t?t:'n/a';s._partner=N?N:'n/a';s._"}]
[{"$f":"+\"campaignID=O?O:'n/a';s._campaign=u?u:'n/a';s._keywords=l?l:N?'Keywo\"","v":"campaignID=O?O:'n/a';s._campaign=u?u:'n/a';s._keywords=l?l:N?'Keywo"}]
["+\"rd Unavailable':'n/a';s._channel=P?P:'n/a';}\");"]
[]
["/* Top 130 Search Engines - Grouped */"]
["s.seList=\"altavista.co,altavista.de|q,r|AltaVista>.aol.,suche.aolsvc.\""]
[{"$f":"+\"de|q,query|AOL>ask.jp,ask.co|q,ask|Ask>www.baidu.com|wd|Baidu>daum.\"","v":"de|q,query|AOL>ask.jp,ask.co|q,ask|Ask>www.baidu.com|wd|Baidu>daum."}]
[{"$f":"+\"net,search.daum.net|q|Daum>google.,googlesyndication.com|q,as_q|Goo\"","v":"net,search.daum.net|q|Daum>google.,googlesyndication.com|q,as_q|Goo"}]
[{"$f":"+\"gle>icqit.com|q|icq>bing.com|q|Bing>myway.com|searchfor|MyWay.com>n\"","v":"gle>icqit.com|q|icq>bing.com|q|Bing>myway.com|searchfor|MyWay.com>n"}]
[{"$f":"+\"aver.com,search.naver.com|query|Naver>netscape.com|query,search|Net\"","v":"aver.com,search.naver.com|query|Naver>netscape.com|query,search|Net"}]
[{"$f":"+\"scape Search>reference.com|q|Reference.com>seznam|w|Seznam.cz>abcso\"","v":"scape Search>reference.com|q|Reference.com>seznam|w|Seznam.cz>abcso"}]
[{"$f":"+\"k.no|q|Startsiden>tiscali.it,www.tiscali.co.uk|key,query|Tiscali>vi\"","v":"k.no|q|Startsiden>tiscali.it,www.tiscali.co.uk|key,query|Tiscali>vi"}]
[{"$f":"+\"rgilio.it|qs|Virgilio>yahoo.com,yahoo.co.jp|p,va|Yahoo!>yandex|text\"","v":"rgilio.it|qs|Virgilio>yahoo.com,yahoo.co.jp|p,va|Yahoo!>yandex|text"}]
[{"$f":"+\"|Yandex.ru>search.cnn.com|query|CNN Web Search>search.earthlink.net\"","v":"|Yandex.ru>search.cnn.com|query|CNN Web Search>search.earthlink.net"}]
[{"$f":"+\"|q|Earthlink Search>search.comcast.net|q|Comcast Search>search.rr.c\"","v":"|q|Earthlink Search>search.comcast.net|q|Comcast Search>search.rr.c"}]
["+\"om|qs|RoadRunner Search>optimum.net|q|Optimum Search\";"]
["  /*                                                                  "]
["   * Plugin: getVisitNum - version 3.0"]
["   */"]
["   s.getVisitNum=new Function(\"tp\",\"c\",\"c2\",\"\""]
["  +\"var s=this,e=new Date,cval,cvisit,ct=e.getTime(),d;if(!tp){tp='m';}\""]
["  +\"if(tp=='m'||tp=='w'||tp=='d'){eo=s.endof(tp),y=eo.getTime();e.setTi\""]
["  +\"me(y);}else {d=tp*86400000;e.setTime(ct+d);}if(!c){c='s_vnum';}if(!\""]
["  +\"c2){c2='s_invisit';}cval=s.c_r(c);if(cval){var i=cval.indexOf('&vn=\""]
["  +\"'),str=cval.substring(i+4,cval.length),k;}cvisit=s.c_r(c2);if(cvisi\""]
["  +\"t){if(str){e.setTime(ct+1800000);s.c_w(c2,'true',e);return str;}els\""]
["  +\"e {return 'unknown visit number';}}else {if(str){str++;k=cval.substri\""]
["  +\"ng(0,i);e.setTime(k);s.c_w(c,k+'&vn='+str,e);e.setTime(ct+1800000);\""]
["  +\"s.c_w(c2,'true',e);return str;}else {s.c_w(c,e.getTime()+'&vn=1',e)\""]
["  +\";e.setTime(ct+1800000);s.c_w(c2,'true',e);return 1;}}\");"]
["  s.dimo=new Function(\"m\",\"y\",\"\""]
["  +\"var d=new Date(y,m+1,0);return d.getDate();\");"]
["  s.endof=new Function(\"x\",\"\""]
["  +\"var t=new Date;t.setHours(0);t.setMinutes(0);t.setSeconds(0);if(x==\""]
["  +\"'m'){d=s.dimo(t.getMonth(),t.getFullYear())-t.getDate()+1;}else if(\""]
["  +\"x=='w'){d=7-t.getDay();}else {d=1;}t.setDate(t.getDate()+d);return \""]
["  +\"t;\");"]
["  /*"]
[" * Plugin: getTimeParting 3.1 "]
[" */"]
["s.getTimeParting=new Function(\"t\",\"z\",\"y\",\"l\",\"\""]
[{"$f":"+\"var s=this,d,A,B,C,D,U,W,X,Y,Z;d=new Date();A=d.getFullYear();if(A=\"","v":"var s=this,d,A,B,C,D,U,W,X,Y,Z;d=new Date();A=d.getFullYear();if(A="}]
[{"$f":"+\"='2011'){B='13';C='06'}if(A=='2012'){B='11';C='04'}if(A=='2013'){B=\"","v":"='2011'){B='13';C='06'}if(A=='2012'){B='11';C='04'}if(A=='2013'){B="}]
[{"$f":"+\"'10';C='03'}if(A=='2014'){B='09';C='02'}if(A=='2015'){B='08';C='01'\"","v":"'10';C='03'}if(A=='2014'){B='09';C='02'}if(A=='2015'){B='08';C='01'"}]
[{"$f":"+\"}if(A=='2016'){B='13';C='06'}if(A=='2017'){B='12';C='05'}if(!B||!C)\"","v":"}if(A=='2016'){B='13';C='06'}if(A=='2017'){B='12';C='05'}if(!B||!C)"}]
[{"$f":"+\"{B='08';C='01'}B='03/'+B+'/'+A;C='11/'+C+'/'+A;D=new Date('1/1/2000\"","v":"{B='08';C='01'}B='03/'+B+'/'+A;C='11/'+C+'/'+A;D=new Date('1/1/2000"}]
[{"$f":"+\"');if(D.getDay()!=6||D.getMonth()!=0){return'Data Not Available'}el\"","v":"');if(D.getDay()!=6||D.getMonth()!=0){return'Data Not Available'}el"}]
[{"$f":"+\"se{z=z?z:'0';z=parseFloat(z);B=new Date(B);C=new Date(C);W=new Date\"","v":"se{z=z?z:'0';z=parseFloat(z);B=new Date(B);C=new Date(C);W=new Date"}]
[{"$f":"+\"();if(W>B&&W<C&&l!='0'){z=z+1}W=W.getTime()+(W.getTimezoneOffset()*\"","v":"();if(W>B&&W<C&&l!='0'){z=z+1}W=W.getTime()+(W.getTimezoneOffset()*"}]
[{"$f":"+\"60000);W=new Date(W+(3600000*z));X=['Sunday','Monday','Tuesday','We\"","v":"60000);W=new Date(W+(3600000*z));X=['Sunday','Monday','Tuesday','We"}]
[{"$f":"+\"dnesday','Thursday','Friday','Saturday'];B=W.getHours();C=W.getMinu\"","v":"dnesday','Thursday','Friday','Saturday'];B=W.getHours();C=W.getMinu"}]
[{"$f":"+\"tes();if(C<10){C='0'+C};D=W.getDay();Z=X[D];U='AM';A='weekday';X='0\"","v":"tes();if(C<10){C='0'+C};D=W.getDay();Z=X[D];U='AM';A='weekday';X='0"}]
[{"$f":"+\"0';if(C>30){X='30'}if(B>=12){U='PM';B=B-12};if(B==0){B=12};if(D==6|\"","v":"0';if(C>30){X='30'}if(B>=12){U='PM';B=B-12};if(B==0){B=12};if(D==6|"}]
[{"$f":"+\"|D==0){A='weekend'}W=B+':'+X+U;if(y&&y!=Y){return'Data Not Availabl\"","v":"|D==0){A='weekend'}W=B+':'+X+U;if(y&&y!=Y){return'Data Not Availabl"}]
[{"$f":"+\"e'}else{if(t){if(t=='h'){return W}if(t=='m'){return B+':'+C+' '+U}i\"","v":"e'}else{if(t){if(t=='h'){return W}if(t=='m'){return B+':'+C+' '+U}i"}]
[{"$f":"+\"f(t=='d'){return Z}if(t=='w'){return A}if(t=='f'){return B+':'+C+' \"","v":"f(t=='d'){return Z}if(t=='w'){return A}if(t=='f'){return B+':'+C+' "}]
["+\"'+U+' - '+Z}}else{return Z+', '+W}}}\");"]
["/*"]
[" * Plugin: getQueryParam 2.4"]
[" */"]
["s.getQueryParam=new Function(\"p\",\"d\",\"u\",\"h\",\"\""]
[{"$f":"+\"var s=this,v='',i,j,t;d=d?d:'';u=u?u:(s.pageURL?s.pageURL:s.wd.loca\"","v":"var s=this,v='',i,j,t;d=d?d:'';u=u?u:(s.pageURL?s.pageURL:s.wd.loca"}]
[{"$f":"+\"tion);if(u=='f')u=s.gtfs().location;while(p){i=p.indexOf(',');i=i<0\"","v":"tion);if(u=='f')u=s.gtfs().location;while(p){i=p.indexOf(',');i=i<0"}]
[{"$f":"+\"?p.length:i;t=s.p_gpv(p.substring(0,i),u+'',h);if(t){t=t.indexOf('#\"","v":"?p.length:i;t=s.p_gpv(p.substring(0,i),u+'',h);if(t){t=t.indexOf('#"}]
[{"$f":"+\"')>-1?t.substring(0,t.indexOf('#')):t;}if(t)v+=v?d+t:t;p=p.substrin\"","v":"')>-1?t.substring(0,t.indexOf('#')):t;}if(t)v+=v?d+t:t;p=p.substrin"}]
["+\"g(i==p.length?i:i+1)}return v\");"]
["s.p_gpv=new Function(\"k\",\"u\",\"h\",\"\""]
[{"$f":"+\"var s=this,v='',q;j=h==1?'#':'?';i=u.indexOf(j);if(k&&i>-1){q=u.sub\"","v":"var s=this,v='',q;j=h==1?'#':'?';i=u.indexOf(j);if(k&&i>-1){q=u.sub"}]
["+\"string(i+1);v=s.pt(q,'&','p_gvf',k)}return v\");"]
["s.p_gvf=new Function(\"t\",\"k\",\"\""]
[{"$f":"+\"if(t){var s=this,i=t.indexOf('='),p=i<0?t:t.substring(0,i),v=i<0?'T\"","v":"if(t){var s=this,i=t.indexOf('='),p=i<0?t:t.substring(0,i),v=i<0?'T"}]
[{"$f":"+\"rue':t.substring(i+1);if(p.toLowerCase()==k.toLowerCase())return s.\"","v":"rue':t.substring(i+1);if(p.toLowerCase()==k.toLowerCase())return s."}]
["+\"epa(v)}return''\");"]
[]
["/*"]
[" * Plugin: getPreviousValue v1.0 - return previous value of designated"]
[" *   variable (requires split utility)"]
[" */"]
["s.getPreviousValue=new Function(\"v\",\"c\",\"el\",\"\""]
[{"$f":"+\"var s=this,t=new Date,i,j,r='';t.setTime(t.getTime()+1800000);if(el\"","v":"var s=this,t=new Date,i,j,r='';t.setTime(t.getTime()+1800000);if(el"}]
[{"$f":"+\"){if(s.events){i=s.split(el,',');j=s.split(s.events,',');for(x in i\"","v":"){if(s.events){i=s.split(el,',');j=s.split(s.events,',');for(x in i"}]
[{"$f":"+\"){for(y in j){if(i[x]==j[y]){if(s.c_r(c)) r=s.c_r(c);v?s.c_w(c,v,t)\"","v":"){for(y in j){if(i[x]==j[y]){if(s.c_r(c)) r=s.c_r(c);v?s.c_w(c,v,t)"}]
[{"$f":"+\":s.c_w(c,'no value',t);return r}}}}}else{if(s.c_r(c)) r=s.c_r(c);v?\"","v":":s.c_w(c,'no value',t);return r}}}}}else{if(s.c_r(c)) r=s.c_r(c);v?"}]
["+\"s.c_w(c,v,t):s.c_w(c,'no value',t);return r}\");"]
[]
["/*"]
[" * Plugin: getValOnce_v1.0"]
[" */"]
["s.getValOnce=new Function(\"v\",\"c\",\"e\",\"\""]
[{"$f":"+\"var s=this,a=new Date,v=v?v:v='',c=c?c:c='s_gvo',e=e?e:0,k=s.c_r(c\"","v":"var s=this,a=new Date,v=v?v:v='',c=c?c:c='s_gvo',e=e?e:0,k=s.c_r(c"}]
[{"$f":"+\");if(v){a.setTime(a.getTime()+e*86400000);s.c_w(c,v,e?a:0);}return\"","v":");if(v){a.setTime(a.getTime()+e*86400000);s.c_w(c,v,e?a:0);}return"}]
["+\" v==k?'':v\");"]
[]
["/*"]
[" * Utility Function: split v1.5 (JS 1.0 compatible)"]
[" */"]
["s.split=new Function(\"l\",\"d\",\"\""]
[{"$f":"+\"var i,x=0,a=new Array;while(l){i=l.indexOf(d);i=i>-1?i:l.length;a[x\"","v":"var i,x=0,a=new Array;while(l){i=l.indexOf(d);i=i>-1?i:l.length;a[x"}]
["+\"++]=l.substring(0,i);l=l.substring(i+d.length);}return a\");"]
[]
["/*"]
[" * Plugin: getNewRepeat 1.2 - Returns whether user is new or repeat"]
[" */"]
["s.getNewRepeat=new Function(\"d\",\"cn\",\"\""]
[{"$f":"+\"var s=this,e=new Date(),cval,sval,ct=e.getTime();d=d?d:30;cn=cn?cn:\"","v":"var s=this,e=new Date(),cval,sval,ct=e.getTime();d=d?d:30;cn=cn?cn:"}]
[{"$f":"+\"'s_nr';e.setTime(ct+d*24*60*60*1000);cval=s.c_r(cn);if(cval.length=\"","v":"'s_nr';e.setTime(ct+d*24*60*60*1000);cval=s.c_r(cn);if(cval.length="}]
[{"$f":"+\"=0){s.c_w(cn,ct+'-New',e);return'New';}sval=s.split(cval,'-');if(ct\"","v":"=0){s.c_w(cn,ct+'-New',e);return'New';}sval=s.split(cval,'-');if(ct"}]
[{"$f":"+\"-sval[0]<30*60*1000&&sval[1]=='New'){s.c_w(cn,ct+'-New',e);return'N\"","v":"-sval[0]<30*60*1000&&sval[1]=='New'){s.c_w(cn,ct+'-New',e);return'N"}]
["+\"ew';}else{s.c_w(cn,ct+'-Repeat',e);return'Repeat';}\");"]
[]
["/*"]
[" * Plugin: getTimeParting 3.1 "]
[" */"]
["s.getTimeParting=new Function(\"t\",\"z\",\"y\",\"l\",\"\""]
[{"$f":"+\"var s=this,d,A,B,C,D,U,W,X,Y,Z;d=new Date();A=d.getFullYear();if(A=\"","v":"var s=this,d,A,B,C,D,U,W,X,Y,Z;d=new Date();A=d.getFullYear();if(A="}]
[{"$f":"+\"='2011'){B='13';C='06'}if(A=='2012'){B='11';C='04'}if(A=='2013'){B=\"","v":"='2011'){B='13';C='06'}if(A=='2012'){B='11';C='04'}if(A=='2013'){B="}]
[{"$f":"+\"'10';C='03'}if(A=='2014'){B='09';C='02'}if(A=='2015'){B='08';C='01'\"","v":"'10';C='03'}if(A=='2014'){B='09';C='02'}if(A=='2015'){B='08';C='01'"}]
[{"$f":"+\"}if(A=='2016'){B='13';C='06'}if(A=='2017'){B='12';C='05'}if(!B||!C)\"","v":"}if(A=='2016'){B='13';C='06'}if(A=='2017'){B='12';C='05'}if(!B||!C)"}]
[{"$f":"+\"{B='08';C='01'}B='03/'+B+'/'+A;C='11/'+C+'/'+A;D=new Date('1/1/2000\"","v":"{B='08';C='01'}B='03/'+B+'/'+A;C='11/'+C+'/'+A;D=new Date('1/1/2000"}]
[{"$f":"+\"');if(D.getDay()!=6||D.getMonth()!=0){return'Data Not Available'}el\"","v":"');if(D.getDay()!=6||D.getMonth()!=0){return'Data Not Available'}el"}]
[{"$f":"+\"se{z=z?z:'0';z=parseFloat(z);B=new Date(B);C=new Date(C);W=new Date\"","v":"se{z=z?z:'0';z=parseFloat(z);B=new Date(B);C=new Date(C);W=new Date"}]
[{"$f":"+\"();if(W>B&&W<C&&l!='0'){z=z+1}W=W.getTime()+(W.getTimezoneOffset()*\"","v":"();if(W>B&&W<C&&l!='0'){z=z+1}W=W.getTime()+(W.getTimezoneOffset()*"}]
[{"$f":"+\"60000);W=new Date(W+(3600000*z));X=['Sunday','Monday','Tuesday','We\"","v":"60000);W=new Date(W+(3600000*z));X=['Sunday','Monday','Tuesday','We"}]
[{"$f":"+\"dnesday','Thursday','Friday','Saturday'];B=W.getHours();C=W.getMinu\"","v":"dnesday','Thursday','Friday','Saturday'];B=W.getHours();C=W.getMinu"}]
[{"$f":"+\"tes();if(C<10){C='0'+C};D=W.getDay();Z=X[D];U='AM';A='weekday';X='0\"","v":"tes();if(C<10){C='0'+C};D=W.getDay();Z=X[D];U='AM';A='weekday';X='0"}]
[{"$f":"+\"0';if(C>30){X='30'}if(B>=12){U='PM';B=B-12};if(B==0){B=12};if(D==6|\"","v":"0';if(C>30){X='30'}if(B>=12){U='PM';B=B-12};if(B==0){B=12};if(D==6|"}]
[{"$f":"+\"|D==0){A='weekend'}W=B+':'+X+U;if(y&&y!=Y){return'Data Not Availabl\"","v":"|D==0){A='weekend'}W=B+':'+X+U;if(y&&y!=Y){return'Data Not Availabl"}]
[{"$f":"+\"e'}else{if(t){if(t=='h'){return W}if(t=='m'){return B+':'+C+' '+U}i\"","v":"e'}else{if(t){if(t=='h'){return W}if(t=='m'){return B+':'+C+' '+U}i"}]
[{"$f":"+\"f(t=='d'){return Z}if(t=='w'){return A}if(t=='f'){return B+':'+C+' \"","v":"f(t=='d'){return Z}if(t=='w'){return A}if(t=='f'){return B+':'+C+' "}]
["+\"'+U+' - '+Z}}else{return Z+', '+W}}}\");"]
[]
["/*"]
[" * Plugin Utility: apl v1.1"]
[" */"]
["s.apl=new Function(\"l\",\"v\",\"d\",\"u\",\"\""]
[{"$f":"+\"var s=this,m=0;if(!l)l='';if(u){var i,n,a=s.split(l,d);for(i=0;i<a.\"","v":"var s=this,m=0;if(!l)l='';if(u){var i,n,a=s.split(l,d);for(i=0;i<a."}]
[{"$f":"+\"length;i++){n=a[i];m=m||(u==1?(n==v):(n.toLowerCase()==v.toLowerCas\"","v":"length;i++){n=a[i];m=m||(u==1?(n==v):(n.toLowerCase()==v.toLowerCas"}]
["+\"e()));}}if(!m)l=l?l+d+v:v;return l\");"]
[]
["/*"]
[" * Replace Utility"]
[" */"]
["s.repl=new Function(\"x\",\"o\",\"n\",\"\""]
[{"$f":"+\"var i=x.indexOf(o),l=n.length;while(x&&i>=0){x=x.substring(0,i)+n+x.\"","v":"var i=x.indexOf(o),l=n.length;while(x&&i>=0){x=x.substring(0,i)+n+x."}]
["+\"substring(i+o.length);i=x.indexOf(o,i+l)}return x\");"]
[]
["/*"]
[" * Plugin: getTimeToComplete 0.4 - return the time from start to stop"]
[" */"]
["s.getTimeToComplete=new Function(\"v\",\"cn\",\"e\",\"\""]
[{"$f":"+\"var s=this,d=new Date,x=d,k;if(!s.ttcr){e=e?e:0;if(v=='start'||v=='\"","v":"var s=this,d=new Date,x=d,k;if(!s.ttcr){e=e?e:0;if(v=='start'||v=='"}]
[{"$f":"+\"stop')s.ttcr=1;x.setTime(x.getTime()+e*86400000);if(v=='start'){s.c\"","v":"stop')s.ttcr=1;x.setTime(x.getTime()+e*86400000);if(v=='start'){s.c"}]
[{"$f":"+\"_w(cn,d.getTime(),e?x:0);return '';}if(v=='stop'){k=s.c_r(cn);if(!s\"","v":"_w(cn,d.getTime(),e?x:0);return '';}if(v=='stop'){k=s.c_r(cn);if(!s"}]
[{"$f":"+\".c_w(cn,'',d)||!k)return '';v=(d.getTime()-k)/1000;var td=86400,th=\"","v":".c_w(cn,'',d)||!k)return '';v=(d.getTime()-k)/1000;var td=86400,th="}]
[{"$f":"+\"3600,tm=60,r=5,u,un;if(v>td){u=td;un='days';}else if(v>th){u=th;un=\"","v":"3600,tm=60,r=5,u,un;if(v>td){u=td;un='days';}else if(v>th){u=th;un="}]
[{"$f":"+\"'hours';}else if(v>tm){r=2;u=tm;un='minutes';}else{r=.2;u=1;un='sec\"","v":"'hours';}else if(v>tm){r=2;u=tm;un='minutes';}else{r=.2;u=1;un='sec"}]
["+\"onds';}v=v*r/u;return (Math.round(v)/r)+' '+un;}}return '';\");"]
[]
["s.handlePPVevents=new Function(\"\",\"\""]
[{"$f":"+\"if(!s.getPPVid)return;var dh=Math.max(Math.max(s.d.body.scrollHeigh\"","v":"if(!s.getPPVid)return;var dh=Math.max(Math.max(s.d.body.scrollHeigh"}]
[{"$f":"+\"t,s.d.documentElement.scrollHeight),Math.max(s.d.body.offsetHeight,\"","v":"t,s.d.documentElement.scrollHeight),Math.max(s.d.body.offsetHeight,"}]
[{"$f":"+\"s.d.documentElement.offsetHeight),Math.max(s.d.body.clientHeight,s.\"","v":"s.d.documentElement.offsetHeight),Math.max(s.d.body.clientHeight,s."}]
[{"$f":"+\"d.documentElement.clientHeight)),vph=s.wd.innerHeight||(s.d.documen\"","v":"d.documentElement.clientHeight)),vph=s.wd.innerHeight||(s.d.documen"}]
[{"$f":"+\"tElement.clientHeight||s.d.body.clientHeight),st=s.wd.pageYOffset||\"","v":"tElement.clientHeight||s.d.body.clientHeight),st=s.wd.pageYOffset||"}]
[{"$f":"+\"(s.wd.document.documentElement.scrollTop||s.wd.document.body.scroll\"","v":"(s.wd.document.documentElement.scrollTop||s.wd.document.body.scroll"}]
[{"$f":"+\"Top),vh=st+vph,pv=Math.min(Math.round(vh/dh*100),100),c=s.c_r('s_pp\"","v":"Top),vh=st+vph,pv=Math.min(Math.round(vh/dh*100),100),c=s.c_r('s_pp"}]
[{"$f":"+\"v'),a=(c.indexOf(',')>-1)?c.split(',',4):[],id=(a.length>0)?(a[0]):\"","v":"v'),a=(c.indexOf(',')>-1)?c.split(',',4):[],id=(a.length>0)?(a[0]):"}]
[{"$f":"+\"escape(s.getPPVid),cv=(a.length>1)?parseInt(a[1]):(0),p0=(a.length>\"","v":"escape(s.getPPVid),cv=(a.length>1)?parseInt(a[1]):(0),p0=(a.length>"}]
[{"$f":"+\"2)?parseInt(a[2]):(pv),cy=(a.length>3)?parseInt(a[3]):(0),cn=(pv>0)\"","v":"2)?parseInt(a[2]):(pv),cy=(a.length>3)?parseInt(a[3]):(0),cn=(pv>0)"}]
[{"$f":"+\"?(id+','+((pv>cv)?pv:cv)+','+p0+','+((vh>cy)?vh:cy)):'';s.c_w('s_pp\"","v":"?(id+','+((pv>cv)?pv:cv)+','+p0+','+((vh>cy)?vh:cy)):'';s.c_w('s_pp"}]
["+\"v',cn);\");"]
["s.getPercentPageViewed=new Function(\"pid\",\"\""]
[{"$f":"+\"pid=pid?pid:'-';var s=this,ist=!s.getPPVid?true:false;if(typeof(s.l\"","v":"pid=pid?pid:'-';var s=this,ist=!s.getPPVid?true:false;if(typeof(s.l"}]
[{"$f":"+\"inkType)!='undefined'&&s.linkType!='e')return'';var v=s.c_r('s_ppv'\"","v":"inkType)!='undefined'&&s.linkType!='e')return'';var v=s.c_r('s_ppv'"}]
[{"$f":"+\"),a=(v.indexOf(',')>-1)?v.split(',',4):[];if(a.length<4){for(var i=\"","v":"),a=(v.indexOf(',')>-1)?v.split(',',4):[];if(a.length<4){for(var i="}]
[{"$f":"+\"3;i>0;i--){a[i]=(i<a.length)?(a[i-1]):('');}a[0]='';}a[0]=unescape(\"","v":"3;i>0;i--){a[i]=(i<a.length)?(a[i-1]):('');}a[0]='';}a[0]=unescape("}]
[{"$f":"+\"a[0]);s.getPPVpid=pid;s.c_w('s_ppv',escape(pid));if(ist){s.getPPVid\"","v":"a[0]);s.getPPVpid=pid;s.c_w('s_ppv',escape(pid));if(ist){s.getPPVid"}]
[{"$f":"+\"=(pid)?(pid):(s.pageName?s.pageName:document.location.href);s.c_w('\"","v":"=(pid)?(pid):(s.pageName?s.pageName:document.location.href);s.c_w('"}]
[{"$f":"+\"s_ppv',escape(s.getPPVid));if(s.wd.addEventListener){s.wd.addEventL\"","v":"s_ppv',escape(s.getPPVid));if(s.wd.addEventListener){s.wd.addEventL"}]
[{"$f":"+\"istener('load',s.handlePPVevents,false);s.wd.addEventListener('scro\"","v":"istener('load',s.handlePPVevents,false);s.wd.addEventListener('scro"}]
[{"$f":"+\"ll',s.handlePPVevents,false);s.wd.addEventListener('resize',s.handl\"","v":"ll',s.handlePPVevents,false);s.wd.addEventListener('resize',s.handl"}]
[{"$f":"+\"ePPVevents,false);}else if(s.wd.attachEvent){s.wd.attachEvent('onlo\"","v":"ePPVevents,false);}else if(s.wd.attachEvent){s.wd.attachEvent('onlo"}]
[{"$f":"+\"ad',s.handlePPVevents);s.wd.attachEvent('onscroll',s.handlePPVevent\"","v":"ad',s.handlePPVevents);s.wd.attachEvent('onscroll',s.handlePPVevent"}]
[{"$f":"+\"s);s.wd.attachEvent('onresize',s.handlePPVevents);}}return(pid!='-'\"","v":"s);s.wd.attachEvent('onresize',s.handlePPVevents);}}return(pid!='-'"}]
["+\")?(a):(a[1]);\");"]
[]
["/*"]
[" * Utility manageVars v1.4 - clear variable values (requires split 1.5)"]
[" */"]
["s.manageVars=new Function(\"c\",\"l\",\"f\",\"\""]
[{"$f":"+\"var s=this,vl,la,vla;l=l?l:'';f=f?f:1 ;if(!s[c])return false;vl='pa\"","v":"var s=this,vl,la,vla;l=l?l:'';f=f?f:1 ;if(!s[c])return false;vl='pa"}]
[{"$f":"+\"geName,purchaseID,channel,server,pageType,campaign,state,zip,events\"","v":"geName,purchaseID,channel,server,pageType,campaign,state,zip,events"}]
[{"$f":"+\",products,transactionID';for(var n=1;n<76;n++){vl+=',prop'+n+',eVar\"","v":",products,transactionID';for(var n=1;n<76;n++){vl+=',prop'+n+',eVar"}]
[{"$f":"+\"'+n+',hier'+n;}if(l&&(f==1||f==2)){if(f==1){vl=l;}if(f==2){la=s.spl\"","v":"'+n+',hier'+n;}if(l&&(f==1||f==2)){if(f==1){vl=l;}if(f==2){la=s.spl"}]
[{"$f":"+\"it(l,',');vla=s.split(vl,',');vl='';for(x in la){for(y in vla){if(l\"","v":"it(l,',');vla=s.split(vl,',');vl='';for(x in la){for(y in vla){if(l"}]
[{"$f":"+\"a[x]==vla[y]){vla[y]='';}}}for(y in vla){vl+=vla[y]?','+vla[y]:'';}\"","v":"a[x]==vla[y]){vla[y]='';}}}for(y in vla){vl+=vla[y]?','+vla[y]:'';}"}]
[{"$f":"+\"}s.pt(vl,',',c,0);return true;}else if(l==''&&f==1){s.pt(vl,',',c,0\"","v":"}s.pt(vl,',',c,0);return true;}else if(l==''&&f==1){s.pt(vl,',',c,0"}]
["+\");return true;}else{return false;}\");"]
["s.clearVars=new Function(\"t\",\"var s=this;s[t]='';\");"]
["s.lowercaseVars=new Function(\"t\",\"\""]
[{"$f":"+\"var s=this;if(s[t]&&t!='events'){s[t]=s[t].toString();if(s[t].index\"","v":"var s=this;if(s[t]&&t!='events'){s[t]=s[t].toString();if(s[t].index"}]
["+\"Of('D=')!=0){s[t]=s[t].toLowerCase();}}\");"]
[]
["/*"]
[" * DynamicObjectIDs v1.4: Setup Dynamic Object IDs based on URL"]
["*/ "]
["s.setupDynamicObjectIDs=new Function(\"\""]
[{"$f":"+\"var s=this;if(!s.doi){s.doi=1;if(s.apv>3&&(!s.isie||!s.ismac||s.apv\"","v":"var s=this;if(!s.doi){s.doi=1;if(s.apv>3&&(!s.isie||!s.ismac||s.apv"}]
[{"$f":"+\">=5)){if(s.wd.attachEvent)s.wd.attachEvent('onload',s.setOIDs);else\"","v":">=5)){if(s.wd.attachEvent)s.wd.attachEvent('onload',s.setOIDs);else"}]
[{"$f":"+\" if(s.wd.addEventListener)s.wd.addEventListener('load',s.setOIDs,fa\"","v":" if(s.wd.addEventListener)s.wd.addEventListener('load',s.setOIDs,fa"}]
[{"$f":"+\"lse);else{s.doiol=s.wd.onload;s.wd.onload=s.setOIDs}}s.wd.s_semapho\"","v":"lse);else{s.doiol=s.wd.onload;s.wd.onload=s.setOIDs}}s.wd.s_semapho"}]
["+\"re=1}\");"]
["s.setOIDs=new Function(\"e\",\"\""]
["+\"var s=s_c_il[\"+s._in+\"],b=s.eh(s.wd,'onload'),o='onclick',x,l,u,c,i\""]
[{"$f":"+\",a=new Array;if(s.doiol){if(b)s[b]=s.wd[b];s.doiol(e)}if(s.d.links)\"","v":",a=new Array;if(s.doiol){if(b)s[b]=s.wd[b];s.doiol(e)}if(s.d.links)"}]
[{"$f":"+\"{for(i=0;i<s.d.links.length;i++){l=s.d.links[i];c=l[o]?''+l[o]:'';b\"","v":"{for(i=0;i<s.d.links.length;i++){l=s.d.links[i];c=l[o]?''+l[o]:'';b"}]
[{"$f":"+\"=s.eh(l,o);z=l[b]?''+l[b]:'';u=s.getObjectID(l);if(u&&c.indexOf('s_\"","v":"=s.eh(l,o);z=l[b]?''+l[b]:'';u=s.getObjectID(l);if(u&&c.indexOf('s_"}]
["+\"objectID')<0&&z.indexOf('s_objectID')<0){u=s.repl(u,'\\\"','');u=s.re\""]
[{"$f":"+\"pl(u,'\\\\n','').substring(0,97);l.s_oc=l[o];a[u]=a[u]?a[u]+1:1;x='';\"","v":"pl(u,'\\\\n','').substring(0,97);l.s_oc=l[o];a[u]=a[u]?a[u]+1:1;x='';"}]
[{"$f":"+\"if(c.indexOf('.t(')>=0||c.indexOf('.tl(')>=0||c.indexOf('s_gs(')>=0\"","v":"if(c.indexOf('.t(')>=0||c.indexOf('.tl(')>=0||c.indexOf('s_gs(')>=0"}]
["+\")x='var x=\\\".tl(\\\";';x+='s_objectID=\\\"'+u+'_'+a[u]+'\\\";return this.\""]
[{"$f":"+\"s_oc?this.s_oc(e):true';if(s.isns&&s.apv>=5)l.setAttribute(o,x);l[o\"","v":"s_oc?this.s_oc(e):true';if(s.isns&&s.apv>=5)l.setAttribute(o,x);l[o"}]
["+\"]=new Function('e',x)}}}s.wd.s_semaphore=0;return true\");"]
[]
[]
[]
["/* Configure Modules and Plugins */"]
[]
["s.loadModule(\"Media\")"]
["s.Media.autoTrack=false"]
["s.Media.trackWhilePlaying=true"]
["s.Media.trackVars=\"None\""]
["s.Media.trackEvents=\"None\""]
[]
["/* WARNING: Changing any of the below variables will cause drastic"]
["changes to how your visitor data is collected.  Changes should only be"]
["made when instructed to do so by your account manager.*/"]
["s.visitorNamespace=\"abercrombie\""]
["s.trackingServer=\"metrics.abercrombie.com\""]
["s.trackingServerSecure=\"smetrics.abercrombie.com\""]
[]
[]
["/****************************** MODULES *****************************/"]
["/* Module: Media */"]
["s.m_Media_c=\"var m=s.m_i('Media');m.cn=function(n){var m=this;return m.s.rep(m.s.rep(m.s.rep(n,\\\"\\\\n\\\",''),\\\"\\\\r\\\",''),'--**--','')};m.open=function(n,l,p,b){var m=this,i=new Object,tm=new Date,a='',\""]
[{"$f":"+\"x;n=m.cn(n);l=parseInt(l);if(!l)l=1;if(n&&p){if(!m.l)m.l=new Object;if(m.l[n])m.close(n);if(b&&b.id)a=b.id;for (x in m.l)if(m.l[x]&&m.l[x].a==a)m.close(m.l[x].n);i.n=n;i.l=l;i.p=m.cn(p);i.a=a;i.t=0\"","v":"x;n=m.cn(n);l=parseInt(l);if(!l)l=1;if(n&&p){if(!m.l)m.l=new Object;if(m.l[n])m.close(n);if(b&&b.id)a=b.id;for (x in m.l)if(m.l[x]&&m.l[x].a==a)m.close(m.l[x].n);i.n=n;i.l=l;i.p=m.cn(p);i.a=a;i.t=0"}]
[{"$f":"+\";i.ts=0;i.s=Math.floor(tm.getTime()/1000);i.lx=0;i.lt=i.s;i.lo=0;i.e='';i.to=-1;m.l[n]=i}};m.close=function(n){this.e(n,0,-1)};m.play=function(n,o){var m=this,i;i=m.e(n,1,o);i.m=new Function('var m\"","v":";i.ts=0;i.s=Math.floor(tm.getTime()/1000);i.lx=0;i.lt=i.s;i.lo=0;i.e='';i.to=-1;m.l[n]=i}};m.close=function(n){this.e(n,0,-1)};m.play=function(n,o){var m=this,i;i=m.e(n,1,o);i.m=new Function('var m"}]
["+\"=s_c_il['+m._in+'],i;if(m.l){i=m.l[\\\"'+m.s.rep(i.n,'\\\"','\\\\\\\\\\\"')+'\\\"];if(i){if(i.lx==1)m.e(i.n,3,-1);i.mt=setTimeout(i.m,5000)}}');i.m()};m.stop=function(n,o){this.e(n,2,o)};m.track=function(n){va\""]
[{"$f":"+\"r m=this;if (m.trackWhilePlaying) {m.e(n,4,-1)}};m.e=function(n,x,o){var m=this,i,tm=new Date,ts=Math.floor(tm.getTime()/1000),ti=m.trackSeconds,tp=m.trackMilestones,z=new Array,j,d='--**--',t=1,b,\"","v":"r m=this;if (m.trackWhilePlaying) {m.e(n,4,-1)}};m.e=function(n,x,o){var m=this,i,tm=new Date,ts=Math.floor(tm.getTime()/1000),ti=m.trackSeconds,tp=m.trackMilestones,z=new Array,j,d='--**--',t=1,b,"}]
["+\"v=m.trackVars,e=m.trackEvents,pe='media',pev3,w=new Object,vo=new Object;n=m.cn(n);i=n&&m.l&&m.l[n]?m.l[n]:0;if(i){w.name=n;w.length=i.l;w.playerName=i.p;if(i.to<0)w.event=\\\"OPEN\\\";else w.event=(x=\""]
["+\"=1?\\\"PLAY\\\":(x==2?\\\"STOP\\\":(x==3?\\\"MONITOR\\\":\\\"CLOSE\\\")));w.openTime=new Date();w.openTime.setTime(i.s*1000);if(x>2||(x!=i.lx&&(x!=2||i.lx==1))) {b=\\\"Media.\\\"+name;pev3 = m.s.ape(i.n)+d+i.l+d+m.s.a\""]
[{"$f":"+\"pe(i.p)+d;if(x){if(o<0&&i.lt>0){o=(ts-i.lt)+i.lo;o=o<i.l?o:i.l-1}o=Math.floor(o);if(x>=2&&i.lo<o){i.t+=o-i.lo;i.ts+=o-i.lo;}if(x<=2){i.e+=(x==1?'S':'E')+o;i.lx=x;}else if(i.lx!=1)m.e(n,1,o);i.lt=ts\"","v":"pe(i.p)+d;if(x){if(o<0&&i.lt>0){o=(ts-i.lt)+i.lo;o=o<i.l?o:i.l-1}o=Math.floor(o);if(x>=2&&i.lo<o){i.t+=o-i.lo;i.ts+=o-i.lo;}if(x<=2){i.e+=(x==1?'S':'E')+o;i.lx=x;}else if(i.lx!=1)m.e(n,1,o);i.lt=ts"}]
[{"$f":"+\";i.lo=o;pev3+=i.t+d+i.s+d+(m.trackWhilePlaying&&i.to>=0?'L'+i.to:'')+i.e+(x!=2?(m.trackWhilePlaying?'L':'E')+o:'');if(m.trackWhilePlaying){b=0;pe='m_o';if(x!=4){w.offset=o;w.percent=((w.offset+1)/w\"","v":";i.lo=o;pev3+=i.t+d+i.s+d+(m.trackWhilePlaying&&i.to>=0?'L'+i.to:'')+i.e+(x!=2?(m.trackWhilePlaying?'L':'E')+o:'');if(m.trackWhilePlaying){b=0;pe='m_o';if(x!=4){w.offset=o;w.percent=((w.offset+1)/w"}]
[{"$f":"+\".length)*100;w.percent=w.percent>100?100:Math.floor(w.percent);w.timePlayed=i.t;if(m.monitor)m.monitor(m.s,w)}if(i.to<0)pe='m_s';else if(x==4)pe='m_i';else{t=0;v=e='None';ti=ti?parseInt(ti):0;z=tp?\"","v":".length)*100;w.percent=w.percent>100?100:Math.floor(w.percent);w.timePlayed=i.t;if(m.monitor)m.monitor(m.s,w)}if(i.to<0)pe='m_s';else if(x==4)pe='m_i';else{t=0;v=e='None';ti=ti?parseInt(ti):0;z=tp?"}]
[{"$f":"+\"m.s.sp(tp,','):0;if(ti&&i.ts>=ti)t=1;else if(z){if(o<i.to)i.to=o;else{for(j=0;j<z.length;j++){ti=z[j]?parseInt(z[j]):0;if(ti&&((i.to+1)/i.l<ti/100)&&((o+1)/i.l>=ti/100)){t=1;j=z.length}}}}}}}else{m\"","v":"m.s.sp(tp,','):0;if(ti&&i.ts>=ti)t=1;else if(z){if(o<i.to)i.to=o;else{for(j=0;j<z.length;j++){ti=z[j]?parseInt(z[j]):0;if(ti&&((i.to+1)/i.l<ti/100)&&((o+1)/i.l>=ti/100)){t=1;j=z.length}}}}}}}else{m"}]
[{"$f":"+\".e(n,2,-1);if(m.trackWhilePlaying){w.offset=i.lo;w.percent=((w.offset+1)/w.length)*100;w.percent=w.percent>100?100:Math.floor(w.percent);w.timePlayed=i.t;if(m.monitor)m.monitor(m.s,w)}m.l[n]=0;if(i\"","v":".e(n,2,-1);if(m.trackWhilePlaying){w.offset=i.lo;w.percent=((w.offset+1)/w.length)*100;w.percent=w.percent>100?100:Math.floor(w.percent);w.timePlayed=i.t;if(m.monitor)m.monitor(m.s,w)}m.l[n]=0;if(i"}]
[{"$f":"+\".e){pev3+=i.t+d+i.s+d+(m.trackWhilePlaying&&i.to>=0?'L'+i.to:'')+i.e;if(m.trackWhilePlaying){v=e='None';pe='m_o'}else{t=0;m.s.fbr(b)}}else t=0;b=0}if(t){vo.linkTrackVars=v;vo.linkTrackEvents=e;vo.p\"","v":".e){pev3+=i.t+d+i.s+d+(m.trackWhilePlaying&&i.to>=0?'L'+i.to:'')+i.e;if(m.trackWhilePlaying){v=e='None';pe='m_o'}else{t=0;m.s.fbr(b)}}else t=0;b=0}if(t){vo.linkTrackVars=v;vo.linkTrackEvents=e;vo.p"}]
[{"$f":"+\"e=pe;vo.pev3=pev3;m.s.t(vo,b);if(m.trackWhilePlaying){i.ts=0;i.to=o;i.e=''}}}}return i};m.ae=function(n,l,p,x,o,b){if(n&&p){var m=this;if(!m.l||!m.l[n])m.open(n,l,p,b);m.e(n,x,o)}};m.a=function(o,t\"","v":"e=pe;vo.pev3=pev3;m.s.t(vo,b);if(m.trackWhilePlaying){i.ts=0;i.to=o;i.e=''}}}}return i};m.ae=function(n,l,p,x,o,b){if(n&&p){var m=this;if(!m.l||!m.l[n])m.open(n,l,p,b);m.e(n,x,o)}};m.a=function(o,t"}]
[{"$f":"+\"){var m=this,i=o.id?o.id:o.name,n=o.name,p=0,v,c,c1,c2,xc=m.s.h,x,e,f1,f2='s_media_'+m._in+'_oc',f3='s_media_'+m._in+'_t',f4='s_media_'+m._in+'_s',f5='s_media_'+m._in+'_l',f6='s_media_'+m._in+'_m',\"","v":"){var m=this,i=o.id?o.id:o.name,n=o.name,p=0,v,c,c1,c2,xc=m.s.h,x,e,f1,f2='s_media_'+m._in+'_oc',f3='s_media_'+m._in+'_t',f4='s_media_'+m._in+'_s',f5='s_media_'+m._in+'_l',f6='s_media_'+m._in+'_m',"}]
[{"$f":"+\"f7='s_media_'+m._in+'_c',tcf,w;if(!i){if(!m.c)m.c=0;i='s_media_'+m._in+'_'+m.c;m.c++}if(!o.id)o.id=i;if(!o.name)o.name=n=i;if(!m.ol)m.ol=new Object;if(m.ol[i])return;m.ol[i]=o;if(!xc)xc=m.s.b;tcf=n\"","v":"f7='s_media_'+m._in+'_c',tcf,w;if(!i){if(!m.c)m.c=0;i='s_media_'+m._in+'_'+m.c;m.c++}if(!o.id)o.id=i;if(!o.name)o.name=n=i;if(!m.ol)m.ol=new Object;if(m.ol[i])return;m.ol[i]=o;if(!xc)xc=m.s.b;tcf=n"}]
[{"$f":"+\"ew Function('o','var e,p=0;try{if(o.versionInfo&&o.currentMedia&&o.controls)p=1}catch(e){p=0}return p');p=tcf(o);if(!p){tcf=new Function('o','var e,p=0,t;try{t=o.GetQuickTimeVersion();if(t)p=2}catc\"","v":"ew Function('o','var e,p=0;try{if(o.versionInfo&&o.currentMedia&&o.controls)p=1}catch(e){p=0}return p');p=tcf(o);if(!p){tcf=new Function('o','var e,p=0,t;try{t=o.GetQuickTimeVersion();if(t)p=2}catc"}]
["+\"h(e){p=0}return p');p=tcf(o);if(!p){tcf=new Function('o','var e,p=0,t;try{t=o.GetVersionInfo();if(t)p=3}catch(e){p=0}return p');p=tcf(o)}}v=\\\"var m=s_c_il[\\\"+m._in+\\\"],o=m.ol['\\\"+i+\\\"']\\\";if(p==1){\""]
[{"$f":"+\"p='Windows Media Player '+o.versionInfo;c1=v+',n,p,l,x=-1,cm,c,mn;if(o){cm=o.currentMedia;c=o.controls;if(cm&&c){mn=cm.name?cm.name:c.URL;l=cm.duration;p=c.currentPosition;n=o.playState;if(n){if(n=\"","v":"p='Windows Media Player '+o.versionInfo;c1=v+',n,p,l,x=-1,cm,c,mn;if(o){cm=o.currentMedia;c=o.controls;if(cm&&c){mn=cm.name?cm.name:c.URL;l=cm.duration;p=c.currentPosition;n=o.playState;if(n){if(n="}]
["+\"=8)x=0;if(n==3)x=1;if(n==1||n==2||n==4||n==5||n==6)x=2;}';c2='if(x>=0)m.ae(mn,l,\\\"'+p+'\\\",x,x!=2?p:-1,o)}}';c=c1+c2;if(m.s.isie&&xc){x=m.s.d.createElement('script');x.language='jscript';x.type='tex\""]
[{"$f":"+\"t/javascript';x.htmlFor=i;x.event='PlayStateChange(NewState)';x.defer=true;x.text=c;xc.appendChild(x);o[f6]=new Function(c1+'if(n==3){x=3;'+c2+'}setTimeout(o.'+f6+',5000)');o[f6]()}}if(p==2){p='Qui\"","v":"t/javascript';x.htmlFor=i;x.event='PlayStateChange(NewState)';x.defer=true;x.text=c;xc.appendChild(x);o[f6]=new Function(c1+'if(n==3){x=3;'+c2+'}setTimeout(o.'+f6+',5000)');o[f6]()}}if(p==2){p='Qui"}]
[{"$f":"+\"ckTime Player '+(o.GetIsQuickTimeRegistered()?'Pro ':'')+o.GetQuickTimeVersion();f1=f2;c=v+',n,x,t,l,p,p2,mn;if(o){mn=o.GetMovieName()?o.GetMovieName():o.GetURL();n=o.GetRate();t=o.GetTimeScale();l\"","v":"ckTime Player '+(o.GetIsQuickTimeRegistered()?'Pro ':'')+o.GetQuickTimeVersion();f1=f2;c=v+',n,x,t,l,p,p2,mn;if(o){mn=o.GetMovieName()?o.GetMovieName():o.GetURL();n=o.GetRate();t=o.GetTimeScale();l"}]
["+\"=o.GetDuration()/t;p=o.GetTime()/t;p2=o.'+f5+';if(n!=o.'+f4+'||p<p2||p-p2>5){x=2;if(n!=0)x=1;else if(p>=l)x=0;if(p<p2||p-p2>5)m.ae(mn,l,\\\"'+p+'\\\",2,p2,o);m.ae(mn,l,\\\"'+p+'\\\",x,x!=2?p:-1,o)}if(n>0&&\""]
["+\"o.'+f7+'>=10){m.ae(mn,l,\\\"'+p+'\\\",3,p,o);o.'+f7+'=0}o.'+f7+'++;o.'+f4+'=n;o.'+f5+'=p;setTimeout(\\\"'+v+';o.'+f2+'(0,0)\\\",500)}';o[f1]=new Function('a','b',c);o[f4]=-1;o[f7]=0;o[f1](0,0)}if(p==3){p='\""]
[{"$f":"+\"RealPlayer '+o.GetVersionInfo();f1=n+'_OnPlayStateChange';c1=v+',n,x=-1,l,p,mn;if(o){mn=o.GetTitle()?o.GetTitle():o.GetSource();n=o.GetPlayState();l=o.GetLength()/1000;p=o.GetPosition()/1000;if(n!=\"","v":"RealPlayer '+o.GetVersionInfo();f1=n+'_OnPlayStateChange';c1=v+',n,x=-1,l,p,mn;if(o){mn=o.GetTitle()?o.GetTitle():o.GetSource();n=o.GetPlayState();l=o.GetLength()/1000;p=o.GetPosition()/1000;if(n!="}]
["+\"o.'+f4+'){if(n==3)x=1;if(n==0||n==2||n==4||n==5)x=2;if(n==0&&(p>=l||p==0))x=0;if(x>=0)m.ae(mn,l,\\\"'+p+'\\\",x,x!=2?p:-1,o)}if(n==3&&(o.'+f7+'>=10||!o.'+f3+')){m.ae(mn,l,\\\"'+p+'\\\",3,p,o);o.'+f7+'=0}o.\""]
["+\"'+f7+'++;o.'+f4+'=n;';c2='if(o.'+f2+')o.'+f2+'(o,n)}';if(m.s.wd[f1])o[f2]=m.s.wd[f1];m.s.wd[f1]=new Function('a','b',c1+c2);o[f1]=new Function('a','b',c1+'setTimeout(\\\"'+v+';o.'+f1+'(0,0)\\\",o.'+f3+\""]
[{"$f":"+\"'?500:5000);'+c2);o[f4]=-1;if(m.s.isie)o[f3]=1;o[f7]=0;o[f1](0,0)}};m.as=new Function('e','var m=s_c_il['+m._in+'],l,n;if(m.autoTrack&&m.s.d.getElementsByTagName){l=m.s.d.getElementsByTagName(m.s.i\"","v":"'?500:5000);'+c2);o[f4]=-1;if(m.s.isie)o[f3]=1;o[f7]=0;o[f1](0,0)}};m.as=new Function('e','var m=s_c_il['+m._in+'],l,n;if(m.autoTrack&&m.s.d.getElementsByTagName){l=m.s.d.getElementsByTagName(m.s.i"}]
["+\"sie?\\\"OBJECT\\\":\\\"EMBED\\\");if(l)for(n=0;n<l.length;n++)m.a(l[n]);}');if(s.wd.attachEvent)s.wd.attachEvent('onload',m.as);else if(s.wd.addEventListener)s.wd.addEventListener('load',m.as,false)\";"]
["s.m_i(\"Media\");"]

{"sheet":"page_code_sample","index":6,"n_rows":63,"n_cols":1,"rows_kept":63,"cut":false,"hidden":true,"merged":[]}
["s.eVar3=\"Anonymous\";"]
["        "]
[]
[]
["        var previousPage = document.referrer;"]
["        if(previousPage.length>1){"]
["                s.eVar64 = previousPage.toLowerCase();"]
["        }"]
["        var storeId=queryObject.getQueryValue('storeId');"]
["        var topCategoryId=queryObject.getQueryValue('topCategoryId');"]
["        var parentCategoryId=queryObject.getQueryValue('parentCategoryId');"]
["        var categoryId=queryObject.getQueryValue('categoryId');"]
["        var campaignId=queryObject.getQueryValue('utm_campaign');"]
["        var ID = $.cookie('JSESSIONID');"]
["                if((storeId=='11203') || (storeId=='11204') || (storeId=='11205') || (storeId=='14621')){"]
["                var countryId = 'MX';"]
["        }"]
["        else if (storeId=='18157'){"]
["                var countryId = 'IN';"]
["        }"]
["        else if((storeId=='19658')||(storeId=='19161')||(storeId=='19659')){"]
["                var countryId = 'GB';"]
["        }"]
["        else if((storeId=='19159')||(storeId=='19160')||(storeId=='19158')||(storeId=='19157')){"]
["                var countryId = 'EU';"]
["        }"]
["        else{"]
["                var countryId = 'US';"]
["        }"]
["        s.currencyCode='USD';"]
["        var brand = 'anf';"]
["        var x=document.URL.split('?');"]
["        s.prop30=x[0].toLowerCase();"]
[]
["        "]
["        s.prop1=brand+':'+countryId+':'+'Mens'"]
["        s.prop1=s.prop1.toLowerCase();"]
["        s.pageName=brand+':'+countryId+':'+'Mens';"]
["        s.pageName=s.pageName.toLowerCase();"]
["        s.channel=s.prop1;"]
["        s.channel=s.channel.toLowerCase();"]
["        s.prop23 = brand+':'+'Mens';"]
["        s.prop23 = s.prop23.toLowerCase();"]
["        s.prop2=brand+':'+'Mens';"]
["        s.prop2=s.prop2.toLowerCase();"]
["        "]
["        "]
["        s.prop3=brand+':'+countryId+':'+'List';"]
["        s.prop3=s.prop3.toLowerCase();"]
["        s.prop4=brand;"]
["        s.prop4=s.prop4.toLowerCase();"]
["        s.prop5=countryId;"]
["        s.prop5=s.prop5.toLowerCase();"]
["        s.prop6=categoryId;"]
["        "]
["        s.prop17=queryObject.getQueryValue('langId');"]
["        s.eVar1=storeId;"]
["        s.prop32=ID;                                            "]
["        s.eVar11=ID;"]
["        s.eVar7 = $.cookie('langABTest');"]
["        s.eVar46=s.pageName;"]
["        if(campaignId!=null)"]
["                s.campaign=campaignId;"]

{"sheet":"QA_Charles_Scrapping","index":7,"n_rows":280,"n_cols":17,"rows_kept":280,"cut":false,"hidden":false,"merged":[[0,6,0,8],[2,1,2,3]]}
[null,null,"Enter Website Specs Tab Name:","AnF",1,null,"Variables for PowerPoint"]
[{"$f":"IF(A5<>\"\",A3&\",\"&A4&\",\"&A5,IF(A4<>\"\",A3&\",\"&A4,A3))","v":""},{"$f":"INDEX(C4:C100,MATCH(\"events\",B4:B100,0))","v":{"$error":"#N/A"}},null,null,1,null,"Charles Parameter","Parameter \nFriendly Name","Charles Value (The formula in this column will replace two levels of \"D=\" instances with the proper value)"]
[{"$f":"IFERROR(IF(LEN(B2)-LEN(SUBSTITUTE(B2,\",\",\"\"))=0,VLOOKUP(B2,INDIRECT($D$1&\"!A:B\"),2,FALSE),VLOOKUP(LEFT(B2,LEN(B2)-(LEN(B2) - FIND(\",\",B2))-1),INDIRECT($D$1&\"!A:B\"),2,FALSE)),\"\")","v":""},"Paste Charles Data Here",null,null,1,null,"t","Time/Date",{"$f":"IFERROR(IF(LEFT(VLOOKUP(G3,$B:$C,2,FALSE),2)=\"D=\",IF(LEFT(VLOOKUP(RIGHT(VLOOKUP(G3,$B:$C,2,FALSE),LEN(VLOOKUP(G3,$B:$C,2,FALSE))-2),$B:$C,2,FALSE),2)=\"D=\",VLOOKUP(RIGHT(LEFT(VLOOKUP(RIGHT(VLOOKUP(G3,$B:$C,2,FALSE),LEN(VLOOKUP(G3,$B:$C,2,FALSE))-2),$B:$C,1,FALSE),2),2),$B:$C,2,FALSE),VLOOKUP(RIGHT(VLOOKUP(G3,$B:$C,2,FALSE),LEN(VLOOKUP(G3,$B:$C,2,FALSE))-2),$B:$C,2,FALSE)),VLOOKUP(G3,$B:$C,2,FALSE)),\"\")","v":41038.791446759256},{"$f":"IF(M3=#REF!,\"Y\",\"N\")","v":{"$error":"#REF!"}},"pageName","Pages","/store/plans/lnp/port eligibility",null,{"$f":"IFERROR(INDEX(INDIRECT($D$1&\"!A:A\"),MATCH(P3,INDIRECT($D$1&\"!B:B\"),0),1),\"\")","v":"ns"},"Report Suite",{"$f":"IFERROR(IF(LEFT(VLOOKUP(O3,$B:$C,2,FALSE),2)=\"D=\",IF(LEFT(VLOOKUP(RIGHT(VLOOKUP(O3,$B:$C,2,FALSE),LEN(VLOOKUP(O3,$B:$C,2,FALSE))-2),$B:$C,2,FALSE),2)=\"D=\",VLOOKUP(RIGHT(LEFT(VLOOKUP(RIGHT(VLOOKUP(O3,$B:$C,2,FALSE),LEN(VLOOKUP(O3,$B:$C,2,FALSE))-2),$B:$C,1,FALSE),2),2),$B:$C,2,FALSE),VLOOKUP(RIGHT(VLOOKUP(O3,$B:$C,2,FALSE),LEN(VLOOKUP(O3,$B:$C,2,FALSE))-2),$B:$C,2,FALSE)),VLOOKUP(O3,$B:$C,2,FALSE)),\"\")","v":"abercrombie"}]
[{"$f":"IFERROR(IF(LEN(B2)-LEN(SUBSTITUTE(B2,\",\",\"\"))=1,VLOOKUP(RIGHT(B2,LEN(B2)-FIND(\",\",B2)),INDIRECT($D$1&\"!A:B\"),2,FALSE),IF(LEN(B2)-LEN(SUBSTITUTE(B2,\",\",\"\"))=2,VLOOKUP(MID(B2,FIND(\",\",B2)+1,FIND(\",\",B2,FIND(\",\",B2)+1)-FIND(\",\",B2)-1),INDIRECT($D$1&\"!A:B\"),2,FALSE),\"\")),\"\")","v":""},"AQB",1,null,1,null,"ns","Report Suite","abercrombie",{"$f":"IF(M4=#REF!,\"Y\",\"N\")","v":{"$error":"#REF!"}},"g","Not Listed","http://www.verizonwireless.com/b2c/LNPControllerServlet",null,{"$f":"IFERROR(INDEX(INDIRECT($D$1&\"!A:A\"),MATCH(P4,INDIRECT($D$1&\"!B:B\"),0),1),\"\")","v":"v46"},"Page Name","anf:us:homepage"]
[{"$f":"IFERROR(IF(LEN(B2)-LEN(SUBSTITUTE(B2,\",\",\"\"))=2,VLOOKUP(RIGHT(B2,LEN(B2)-FIND(\",\",B2,FIND(\",\",B2)+1)),INDIRECT($D$1&\"!A:B\"),2,FALSE),\"\"),\"\")","v":""},"ndh",1,null,1,null,"pageName","Page Name","anf:us:homepage",{"$f":"IF(M5=#REF!,\"Y\",\"N\")","v":{"$error":"#REF!"}},"r","Not Listed","http://www.verizonwireless.com/b2c/LNPControllerServlet",null,"","Site Section Level 1",""]
[null,"t",41038.791446759256,null,1,null,"g","Current Url","http://www.abercrombie.com/webapp/wcs/stores/servlet/StoreView?storeId=10051&langId=-1&catalogId=10901",{"$f":"IF(M6=#REF!,\"Y\",\"N\")","v":{"$error":"#REF!"}},"ch","Site Section Level 1","/store",null,"server","Server",""]
[null,"ns","abercrombie",null,1,null,"cc","Currency Code","USD",{"$f":"IF(M7=#REF!,\"Y\",\"N\")","v":{"$error":"#REF!"}},"server","server","www.verizonwireless.com",null,"events","Events",""]
[null,"pageName","anf:us:homepage",null,1,null,"ch","Site Sections","anf:us:homepage",{"$f":"IF(M8=#REF!,\"Y\",\"N\")","v":{"$error":"#REF!"}},"events","events","event7"]
[null,"g","http://www.abercrombie.com/webapp/wcs/stores/servlet/StoreView?storeId=10051&langId=-1&catalogId=10901",null,1,null,"v1","Site",{"$f":"IFERROR(IF(LEFT(VLOOKUP(G9,$B:$C,2,FALSE),2)=\"D=\",IF(LEFT(VLOOKUP(RIGHT(VLOOKUP(G9,$B:$C,2,FALSE),LEN(VLOOKUP(G9,$B:$C,2,FALSE))-2),$B:$C,2,FALSE),2)=\"D=\",VLOOKUP(RIGHT(LEFT(VLOOKUP(RIGHT(VLOOKUP(G9,$B:$C,2,FALSE),LEN(VLOOKUP(G9,$B:$C,2,FALSE))-2),$B:$C,1,FALSE),2),2),$B:$C,2,FALSE),VLOOKUP(RIGHT(VLOOKUP(G9,$B:$C,2,FALSE),LEN(VLOOKUP(G9,$B:$C,2,FALSE))-2),$B:$C,2,FALSE)),VLOOKUP(G9,$B:$C,2,FALSE)),\"\")","v":10051},{"$f":"IF(M9=#REF!,\"Y\",\"N\")","v":{"$error":"#REF!"}},"c1","Site Section Level 2","/plans"]
[null,"cc","USD",null,1,null,"v2","Country",{"$f":"IFERROR(IF(LEFT(VLOOKUP(G10,$B:$C,2,FALSE),2)=\"D=\",IF(LEFT(VLOOKUP(RIGHT(VLOOKUP(G10,$B:$C,2,FALSE),LEN(VLOOKUP(G10,$B:$C,2,FALSE))-2),$B:$C,2,FALSE),2)=\"D=\",VLOOKUP(RIGHT(LEFT(VLOOKUP(RIGHT(VLOOKUP(G10,$B:$C,2,FALSE),LEN(VLOOKUP(G10,$B:$C,2,FALSE))-2),$B:$C,1,FALSE),2),2),$B:$C,2,FALSE),VLOOKUP(RIGHT(VLOOKUP(G10,$B:$C,2,FALSE),LEN(VLOOKUP(G10,$B:$C,2,FALSE))-2),$B:$C,2,FALSE)),VLOOKUP(G10,$B:$C,2,FALSE)),\"\")","v":"us"},{"$f":"IF(M10=#REF!,\"Y\",\"N\")","v":{"$error":"#REF!"}},"v1","Time Parting","6:30PM"]
[null,"ch","anf:us:homepage",null,1,null,"c3","Page Type","anf:US:HomePage",{"$f":"IF(M11=#REF!,\"Y\",\"N\")","v":{"$error":"#REF!"}},"c2","Site Section Level 3","/lnp"]
[null,"v1",10051,null,1,null,"v3","User Status","Anonymous",{"$f":"IF(M12=#REF!,\"Y\",\"N\")","v":{"$error":"#REF!"}},"v5","New/Repeat Visitor","Repeat"]
[null,"v2","us",null,1,null,"c4","Site","anf",{"$f":"IF(M13=#REF!,\"Y\",\"N\")","v":{"$error":"#REF!"}},"c8","Previous Page","/store/plans/lnp"]
[null,"c3","anf:US:HomePage",null,1,null,"c5","Country","us",{"$f":"IF(M14=#REF!,\"Y\",\"N\")","v":{"$error":"#REF!"}},"v8","Flow Name","D=c1"]
[null,"v3","Anonymous",null,1,null,"v11","Visitor ID","000069wBx2Qd6ZnlsijU_KkDJEN:15r7tjg9d",{"$f":"IF(M15=#REF!,\"Y\",\"N\")","v":{"$error":"#REF!"}},"c9","% of Page Viewed","60|60"]
[null,"c4","anf",null,1,null,"c16","New vs Return","Repeat",{"$f":"IF(M16=#REF!,\"Y\",\"N\")","v":{"$error":"#REF!"}},"v9","Flow Type","D=c1"]
[null,"c5","us",null,1,null,"c22","Previous Page","anf:us:homepage",{"$f":"IF(M17=#REF!,\"Y\",\"N\")","v":{"$error":"#REF!"}},"c10","Page Type","store"]
[null,"v11","000069wBx2Qd6ZnlsijU_KkDJEN:15r7tjg9d",null,1,null,"c23","Previous Page Name Global","anf:homepage",{"$f":"IF(M18=#REF!,\"Y\",\"N\")","v":{"$error":"#REF!"}},"v10","Flow Interaction","/plans/port eligibility"]
[null,"c16","Repeat",null,1,null,"c26","Visit Number",28,{"$f":"IF(M19=#REF!,\"Y\",\"N\")","v":{"$error":"#REF!"}},"c15","Visit Number",7]
[null,"c22","anf:us:homepage",null,1,null,"c27","Day of Week","Friday, 6:30PM",{"$f":"IF(M20=#REF!,\"Y\",\"N\")","v":{"$error":"#REF!"}},"v16","Store Name","vzw_b2c"]
[null,"c23","anf:homepage",null,1,null,"c29","Time of Day","6:30PM",{"$f":"IF(M21=#REF!,\"Y\",\"N\")","v":{"$error":"#REF!"}},"c17","pageName + Querystring","/b2c/LNPControllerServlet"]
[null,"c26",28,null,1,null,"v29","Time of Day","6:30PM",{"$f":"IF(M22=#REF!,\"Y\",\"N\")","v":{"$error":"#REF!"}},"c19","Flow Name","/plans"]
[null,"c27","Friday, 6:30PM",null,1,null,"c30","Page URL","http://www.abercrombie.com/webapp/wcs/stores/servlet/storeview",{"$f":"IF(M23=#REF!,\"Y\",\"N\")","v":{"$error":"#REF!"}},"c20","Flow Type","/plans"]
[null,"c29","6:30PM",null,1,null,"c32","Visitor ID","000069wBx2Qd6ZnlsijU_KkDJEN:15r7tjg9d",{"$f":"IF(M24=#REF!,\"Y\",\"N\")","v":{"$error":"#REF!"}},"c21","Flow Interaction","/plans/port eligibility"]
[null,"v29","6:30PM",null,1,null,"c35","Page Viewed %",73,{"$f":"IF(M25=#REF!,\"Y\",\"N\")","v":{"$error":"#REF!"}},"c24","Online Authentication State","Unauthenticated"]
[null,"c30","http://www.abercrombie.com/webapp/wcs/stores/servlet/storeview",null,1,null,"v46","Page Name","anf:us:homepage",{"$f":"IF(M26=#REF!,\"Y\",\"N\")","v":{"$error":"#REF!"}},"v32","Global_ID","o58AVXGI87OFzr1aMfcm%2BQR2Vrt5UTbigACo5lVEkSWwHFHSWo2jVTHJdsKMDood"]
[null,"c32","000069wBx2Qd6ZnlsijU_KkDJEN:15r7tjg9d",null,1,null,"v64","Previous Page","anf:us:homepage",{"$f":"IF(M27=#REF!,\"Y\",\"N\")","v":{"$error":"#REF!"}},"c34","Customer Type","b2c"]
[null,"c35",73,null,1,null,"v67","Visit Number ",28,{"$f":"IF(M28=#REF!,\"Y\",\"N\")","v":{"$error":"#REF!"}},"c35","Language Indicator","english"]
[null,"v46","anf:us:homepage",null,1,null,"v68","Day of Week","Friday, 6:30PM",{"$f":"IF(M29=#REF!,\"Y\",\"N\")","v":{"$error":"#REF!"}},"v41","Customer Type","b2c"]
[null,"v64","anf:us:homepage",null,1,null,"v75","s_vi","",{"$f":"IF(M30=#REF!,\"Y\",\"N\")","v":{"$error":"#REF!"}},"c42","User Agent",""]
[null,"v67",28,null,1,null,"s","Screen Resolution","1920x1200",{"$f":"IF(M31=#REF!,\"Y\",\"N\")","v":{"$error":"#REF!"}},"v42","Customer/Prospect Indicator","prospect"]
[null,"v68","Friday, 6:30PM",null,1,null,"c","Color Depth",24,{"$f":"IF(M32=#REF!,\"Y\",\"N\")","v":{"$error":"#REF!"}},"v46","Online Authentication State","Unauthenticated"]
[null,"v75","D=s_vi",null,1,null,"j","Javascript Version",1.7,{"$f":"IF(M33=#REF!,\"Y\",\"N\")","v":{"$error":"#REF!"}},"c49","Not Listed","V013112A"]
[null,"s","1920x1200",null,1,null,"v","Javascript Enabled","N",{"$f":"IF(M34=#REF!,\"Y\",\"N\")","v":{"$error":"#REF!"}},"v57","Not Listed",""]
[null,"c",24,null,1,null,"k","Cookies Supported","Y",{"$f":"IF(M35=#REF!,\"Y\",\"N\")","v":{"$error":"#REF!"}},"h1","Not Listed","store/plans/lnp/port eligibility"]
[null,"j",1.7,null,1,null,"bw","Browser Width",1920,{"$f":"IF(M36=#REF!,\"Y\",\"N\")","v":{"$error":"#REF!"}}]
[null,"v","N",null,1,null,"bh","Browser Height",981,{"$f":"IF(M37=#REF!,\"Y\",\"N\")","v":{"$error":"#REF!"}}]
[null,"k","Y",null,1,null,"p","Plugins","Google Update;Adobe Acrobat;Silverlight Plug-In;QuickTime Plug-in 7.7;Shockwave Flash;Shockwave for Director;iTunes Application Detector;NVIDIA 3D VISION;NVIDIA 3D Vision;Microsoft Lync 2010 Meeting Join Plug-in;Microsoft Office 2010;",{"$f":"IF(M38=#REF!,\"Y\",\"N\")","v":{"$error":"#REF!"}}]
[null,"bw",1920,null,1,null,null,null,"",{"$f":"IF(M39=#REF!,\"Y\",\"N\")","v":{"$error":"#REF!"}}]
[null,"bh",981,null,1,null,null,null,"",{"$f":"IF(M40=#REF!,\"Y\",\"N\")","v":{"$error":"#REF!"}}]
[null,"p","Google Update;Adobe Acrobat;Silverlight Plug-In;QuickTime Plug-in 7.7;Shockwave Flash;Shockwave for Director;iTunes Application Detector;NVIDIA 3D VISION;NVIDIA 3D Vision;Microsoft Lync 2010 Meeting Join Plug-in;Microsoft Office 2010;",null,1,null,null,null,"",{"$f":"IF(M41=#REF!,\"Y\",\"N\")","v":{"$error":"#REF!"}}]
[null,"AQE",1,null,1,null,null,null,"",{"$f":"IF(M42=#REF!,\"Y\",\"N\")","v":{"$error":"#REF!"}}]
[null,null,null,null,1,null,null,null,"",{"$f":"IF(M43=#REF!,\"Y\",\"N\")","v":{"$error":"#REF!"}}]
[null,null,null,null,1,null,null,null,"",{"$f":"IF(M44=#REF!,\"Y\",\"N\")","v":{"$error":"#REF!"}}]
[null,null,null,null,1,null,null,null,"",{"$f":"IF(M45=#REF!,\"Y\",\"N\")","v":{"$error":"#REF!"}}]
[null,null,null,null,1,null,null,null,"",{"$f":"IF(M46=#REF!,\"Y\",\"N\")","v":{"$error":"#REF!"}}]
[null,null,null,null,1,null,null,null,"",{"$f":"IF(M47=#REF!,\"Y\",\"N\")","v":{"$error":"#REF!"}}]
[null,null,null,null,1,null,null,null,"",{"$f":"IF(M48=#REF!,\"Y\",\"N\")","v":{"$error":"#REF!"}}]
[null,null,null,null,1,null,null,null,"",{"$f":"IF(M49=#REF!,\"Y\",\"N\")","v":{"$error":"#REF!"}}]
[null,null,null,null,1,null,null,null,"",{"$f":"IF(M50=#REF!,\"Y\",\"N\")","v":{"$error":"#REF!"}}]
[null,null,null,null,1,null,null,null,"",{"$f":"IF(M51=#REF!,\"Y\",\"N\")","v":{"$error":"#REF!"}}]
[null,null,null,null,1,null,null,null,"",{"$f":"IF(M52=#REF!,\"Y\",\"N\")","v":{"$error":"#REF!"}}]
[null,null,null,null,1,null,null,null,"",{"$f":"IF(M53=#REF!,\"Y\",\"N\")","v":{"$error":"#REF!"}}]
[null,null,null,null,1,null,null,null,"",{"$f":"IF(M54=#REF!,\"Y\",\"N\")","v":{"$error":"#REF!"}}]
[null,null,null,null,1,null,null,null,"",{"$f":"IF(M55=#REF!,\"Y\",\"N\")","v":{"$error":"#REF!"}}]
[null,null,null,null,1]
[null,null,null,null,1]
[null,null,null,null,1]
[null,null,null,null,1]
[null,null,null,null,1]
[null,null,null,null,1]
[null,null,null,null,1]
[null,null,null,null,1]
[null,null,null,null,1]
[null,null,null,null,1]
[null,null,null,null,1]
[null,null,null,null,1]
[null,null,null,null,1]
[null,null,null,null,1]
[null,null,null,null,1]
[null,null,null,null,1]
[null,null,null,null,1]
[null,null,null,null,1]
[null,null,null,null,1]
[null,null,null,null,1]
[null,null,null,null,1]
[null,null,null,null,1]
[null,null,null,null,1]
[null,null,null,null,1]
[null,null,null,null,1]
[null,null,null,null,1]
[null,null,null,null,1]
[null,null,null,null,1]
[null,null,null,null,1]
[null,null,null,null,1]
[null,null,null,null,1]
[null,null,null,null,1]
[null,null,null,null,1]
[null,null,null,null,1]
[null,null,null,null,1]
[null,null,null,null,1]
[null,null,null,null,1]
[null,null,null,null,1]
[null,null,null,null,1]
[null,null,null,null,1]
[null,null,null,null,1]
[null,null,null,null,1]
[null,null,null,null,1]
[null,null,null,null,1]
[null,null,null,null,1]
[null,null,null,null,1]
[null,null,null,null,1]
[null,null,null,null,1]
[null,null,null,null,1]
[null,null,null,null,1]
[null,null,null,null,1]
[null,null,null,null,1]
[null,null,null,null,1]
[null,null,null,null,1]
[null,null,null,null,1]
[null,null,null,null,1]
[null,null,null,null,1]
[null,null,null,null,1]
[null,null,null,null,1]
[null,null,null,null,1]
[null,null,null,null,1]
[null,null,null,null,1]
[null,null,null,null,1]
[null,null,null,null,1]
[null,null,null,null,1]
[null,null,null,null,1]
[null,null,null,null,1]
[null,null,null,null,1]
[null,null,null,null,1]
[null,null,null,null,1]
[null,null,null,null,1]
[null,null,null,null,1]
[null,null,null,null,1]
[null,null,null,null,1]
[null,null,null,null,1]
[null,null,null,null,1]
[null,null,null,null,1]
[null,null,null,null,1]
[null,null,null,null,1]
[null,null,null,null,1]
[null,null,null,null,1]
[null,null,null,null,1]
[null,null,null,null,1]
[null,null,null,null,1]
[null,null,null,null,1]
[null,null,null,null,1]
[null,null,null,null,1]
[null,null,null,null,1]
[null,null,null,null,1]
[null,null,null,null,1]
[null,null,null,null,1]
[null,null,null,null,1]
[null,null,null,null,1]
[null,null,null,null,1]
[null,null,null,null,1]
[null,null,null,null,1]
[null,null,null,null,1]
[null,null,null,null,1]
[null,null,null,null,1]
[null,null,null,null,1]
[null,null,null,null,1]
[null,null,null,null,1]
[null,null,null,null,1]
[null,null,null,null,1]
[null,null,null,null,1]
[null,null,null,null,1]
[null,null,null,null,1]
[null,null,null,null,1]
[null,null,null,null,1]
[null,null,null,null,1]
[null,null,null,null,1]
[null,null,null,null,1]
[null,null,null,null,1]
[null,null,null,null,1]
[null,null,null,null,1]
[null,null,null,null,1]
[null,null,null,null,1]
[null,null,null,null,1]
[null,null,null,null,1]
[null,null,null,null,1]
[null,null,null,null,1]
[null,null,null,null,1]
[null,null,null,null,1]
[null,null,null,null,1]
[null,null,null,null,1]
[null,null,null,null,1]
[null,null,null,null,1]
[null,null,null,null,1]
[null,null,null,null,1]
[null,null,null,null,1]
[null,null,null,null,1]
[null,null,null,null,1]
[null,null,null,null,1]
[null,null,null,null,1]
[null,null,null,null,1]
[null,null,null,null,1]
[null,null,null,null,1]
[null,null,null,null,1]
[null,null,null,null,1]
[null,null,null,null,1]
[null,null,null,null,1]
[null,null,null,null,1]
[null,null,null,null,1]
[null,null,null,null,1]
[null,null,null,null,1]
[null,null,null,null,1]
[null,null,null,null,1]
[null,null,null,null,1]
[null,null,null,null,1]
[null,null,null,null,1]
[null,null,null,null,1]
[null,null,null,null,1]
[null,null,null,null,1]
[null,null,null,null,1]
[null,null,null,null,1]
[null,null,null,null,1]
[null,null,null,null,1]
[null,null,null,null,1]
[null,null,null,null,1]
[null,null,null,null,1]
[null,null,null,null,1]
[null,null,null,null,1]
[null,null,null,null,1]
[null,null,null,null,1]
[null,null,null,null,1]
[null,null,null,null,1]
[null,null,null,null,1]
[null,null,null,null,1]
[null,null,null,null,1]
[null,null,null,null,1]
[null,null,null,null,1]
[null,null,null,null,1]
[null,null,null,null,1]
[null,null,null,null,1]
[null,null,null,null,1]
[null,null,null,null,1]
[null,null,null,null,1]
[null,null,null,null,1]
[null,null,null,null,1]
[null,null,null,null,1]
[null,null,null,null,1]
[null,null,null,null,1]
[null,null,null,null,1]
[null,null,null,null,1]
[null,null,null,null,1]
[null,null,null,null,1]
[null,null,null,null,1]
[null,null,null,null,1]
[null,null,null,null,1]
[null,null,null,null,1]
[null,null,null,null,1]
[null,null,null,null,1]
[null,null,null,null,1]
[null,null,null,null,1]
[null,null,null,null,1]
[null,null,null,null,1]
[null,null,null,null,1]
[null,null,null,null,1]
[null,null,null,null,1]
[null,null,null,null,1]
[null,null,null,null,1]
[null,null,null,null,1]
[null,null,null,null,1]
[null,null,null,null,1]
[null,null,null,null,1]
[null,null,null,null,1]
[null,null,null,null,1]
[null,null,null,null,1]
[null,null,null,null,1]
[null,null,null,null,1]
[null,null,null,null,1]
[null,null,null,null,1]
[null,null,null,null,1]
[null,null,null,null,1]
[null,null,null,null,1]
[null,null,null,null,1]
[null,null,null,null,1]
[null,null,null,null,1]
[null,null,null,null,1]
[null,null,null,null,1]
[null,null,null,null,1]
[null,null,null,null,1]
[null,null,null,null,1]
[null,null,null,null,1]
[null,null,null,null,1]

{"sheet":"AnF","index":8,"n_rows":335,"n_cols":22,"rows_kept":335,"cut":false,"hidden":false,"merged":[]}
[null,null,null,"Don't Adjust hidden columns",{"$f":"IF(F1<>\"\",RANK(F1,F:F,1),\"\")","v":""},{"$f":"IF(B1<>\"\",ROW(F1),\"\")","v":""},{"$f":"IF(F1<>\"\",A1,\"\")","v":""},{"$f":"IF(B1<>\"\",B1,\"\")","v":""},1,{"$f":"IFERROR(VLOOKUP(I1,E:H,4,FALSE),\"\")","v":""}]
[null,null,null,null,{"$f":"IF(F2<>\"\",RANK(F2,F:F,1),\"\")","v":""},{"$f":"IF(B2<>\"\",ROW(F2),\"\")","v":""},{"$f":"IF(F2<>\"\",A2,\"\")","v":""},{"$f":"IF(B2<>\"\",B2,\"\")","v":""},2,{"$f":"IFERROR(VLOOKUP(I2,E:H,4,FALSE),0)","v":0}]
[null,null,null,null,"","","","",3,{"$f":"IFERROR(VLOOKUP(I3,E:H,4,FALSE),0)","v":0}]
["Place Site Specific SDR data in column \"B\" below",null,null,null,"","","","",4,0]
["Events #","****Events****",null,null,{"$error":"#REF!"},5,"Events #","****Events****",5,0,"Rank","Rank A",null,"Events","Rank","Rank A",null,"eVars","Rank","Rank A",null,"s.Props (traffic)"]
["event1","Internal Search",null,null,{"$error":"#REF!"},6,"event1","Internal Search",6,0,{"$f":"COUNTIF($B$6:$B$105, \"<=\"&$B6)","v":60},1,{"$f":"IFERROR(INDEX($A$6:$A$105,MATCH(L6,$K$6:$K$105,0)),\"\")","v":""},{"$f":"IFERROR(INDEX($B$6:$B$105,MATCH(L6,$K$6:$K$105,0)),\"\")","v":""},{"$f":"COUNTIF($B$108:$B$207, \"<=\"&$B108)","v":67},1,{"$f":"IFERROR(INDEX($A$108:$A$207,MATCH(P6,$O$6:$O$105,0)),\"\")","v":""},{"$f":"IFERROR(INDEX($B$108:$B$207,MATCH(P6,$O$6:$O$105,0)),\"\")","v":""},{"$f":"COUNTIF($B$211:$B$310, \"<=\"&$B211)","v":49},1,{"$f":"IFERROR(INDEX($A$210:$A$310,MATCH(T6,$S$6:$S$105,0)),\"\")","v":""},{"$f":"IFERROR(INDEX($B$211:$B$310,MATCH(T6,$S$6:$S$105,0)),\"\")","v":""}]
["event2","Internal Null Search",null,null,{"$error":"#REF!"},7,"event2","Internal Null Search",7,0,{"$f":"COUNTIF($B$6:$B$105, \"<=\"&$B7)","v":59},2,"",{"$f":"IFERROR(INDEX($B$6:$B$105,MATCH(L7,$K$6:$K$105,0)),\"\")","v":""},{"$f":"COUNTIF($B$108:$B$207, \"<=\"&$B109)","v":35},2,"","",{"$f":"COUNTIF($B$211:$B$310, \"<=\"&$B212)","v":72},2,"",""]
["event3","Email Opt Outs",null,{"$f":"OFFSET(INDIRECT(QA_Charles_Scrapping!$D$1&\"!a6\"),,,MATCH(\"\",INDIRECT(QA_Charles_Scrapping!$D$1&\"!a5:a105\"),0)-2,2)","v":{"$error":"#N/A"}},{"$error":"#REF!"},8,"event3","Email Opt Outs",8,0,50,3,"","",70,3,"","",{"$f":"COUNTIF($B$211:$B$310, \"<=\"&$B213)","v":59},3,"",""]
["event4","Email Unsubscribes ",null,{"$f":"MATCH(\"\",INDIRECT(QA_Charles_Scrapping!$D$1&\"!a5:a105\"),0)-2","v":{"$error":"#N/A"}},{"$error":"#REF!"},9,"event4","Email Unsubscribes ",9,0,57,4,"","",36,4,"","",{"$f":"COUNTIF($B$211:$B$310, \"<=\"&$B214)","v":71},4,"",""]
["event5","Account Creations",null,null,{"$error":"#REF!"},10,"event5","Account Creations",10,0,45,5,"","",45,5,"","",{"$f":"COUNTIF($B$211:$B$310, \"<=\"&#REF!)","v":0},5,"",""]
["event6",null,null,null,{"$error":"#REF!"},{"$f":"IF(B12<>\"\",ROW(F11),\"\")","v":11},"event6",{"$f":"IF(B12<>\"\",B12,\"\")","v":"Products String Related*"},11,0,{"$f":"COUNTIF($B$6:$B$105, \"<=\"&$B12)","v":70},6,"","",56,6,"","",{"$f":"COUNTIF($B$211:$B$310, \"<=\"&$B215)","v":52},6,"",""]
["event7","Products String Related*",null,null,"",{"$f":"IF(B13<>\"\",ROW(F12),\"\")","v":""},"",{"$f":"IF(B13<>\"\",B13,\"\")","v":""},12,0,{"$f":"COUNTIF($B$6:$B$105, \"<=\"&$B13)","v":0},7,"","",26,7,"","",50,7,"",""]
["event8",null,null,null,{"$error":"#REF!"},{"$f":"IF(#REF!<>\"\",ROW(F13),\"\")","v":{"$error":"#REF!"}},{"$error":"#REF!"},{"$f":"IF(#REF!<>\"\",#REF!,\"\")","v":{"$error":"#REF!"}},13,0,{"$f":"COUNTIF($B$6:$B$105, \"<=\"&#REF!)","v":0},8,"","",0,8,"","",63,8,"",""]
["event9",null,null,null,"",{"$f":"IF(B14<>\"\",ROW(F14),\"\")","v":""},"",{"$f":"IF(B14<>\"\",B14,\"\")","v":""},14,0,{"$f":"COUNTIF($B$6:$B$105, \"<=\"&$B14)","v":0},9,"","",0,9,"","",0,9,"",""]
["event10",null,null,null,"","","","",15,0,0,10,"","",38,10,"","",0,10,"",""]
["event11","Product View - Custom",null,null,{"$error":"#REF!"},16,"event11","Product View - Custom",16,0,69,11,"","",72,11,"","",0,11,"",""]
["event12",null,null,null,"","","","",17,0,0,12,"","",30,12,"","",0,12,"",""]
["event13","Shipping Information",null,null,{"$error":"#REF!"},18,"event13","Shipping Information",18,0,75,13,"","",42,13,"","",54,13,"",""]
["event14","Shipping Method",null,null,{"$error":"#REF!"},19,"event14","Shipping Method",19,0,76,14,"","",43,14,"","",74,14,"",""]
["event15","Payment Information",null,null,{"$error":"#REF!"},20,"event15","Payment Information",20,0,67,15,"","",0,15,"","",0,15,"",""]
["event16","Order Review",null,null,{"$error":"#REF!"},21,"event16","Order Review",21,0,66,16,"","",0,16,"","",68,16,"",""]
["event17","Logins",null,null,{"$error":"#REF!"},22,"event17","Logins",22,0,64,17,"","",0,17,"","",58,17,"",""]
["event18","Local Currency",null,null,{"$error":"#REF!"},23,"event18","Local Currency",23,0,61,18,"","",0,18,"","",56,18,"",""]
["event19","Quick View - Product View",null,null,{"$error":"#REF!"},24,"event19","Quick View - Product View",24,0,71,19,"","",0,19,"","",0,19,"",""]
["event20",null,null,null,"","","","",25,0,0,20,"","",61,20,"","",0,20,"",""]
["event21",null,null,null,"","","","",26,0,0,21,"","",51,21,"","",0,21,"",""]
["event22",null,null,null,"","","","",27,0,0,22,"","",53,22,"","",64,22,"",""]
["event23",null,null,null,"","","","",28,0,0,23,"","",0,23,"","",66,23,"",""]
["event24","Email Sign Up",null,null,{"$error":"#REF!"},29,"event24","Email Sign Up",29,0,52,24,"","",0,24,"","",67,24,"",""]
["event25",null,null,null,"","","","",30,0,0,25,"","",54,25,"","",70,25,"",""]
["event26",null,null,null,"","","","",31,0,0,26,"","",64,26,"v7","A/B Test1",69,26,"",""]
["event27",null,null,null,"","","","",32,0,0,27,"","",66,27,"v53","Author Code",75,27,"",""]
["event28",null,null,null,"","","","",33,0,0,28,"","",57,28,"v55","Billing City",53,28,"",""]
["event29",null,null,null,"","","","",34,0,0,29,"","",68,29,"v35","Billing Country",65,29,"",""]
["event30","Email Sign Up",null,null,{"$error":"#REF!"},35,"event30","Email Sign Up",35,0,52,30,"","",49,30,"v12","Campaign Channel",73,30,"",""]
["event31",null,null,null,"","","","",36,0,0,31,"","",44,31,"v57","Check Out Edit/Remove",60,31,"",""]
["event32","Email SU - Abercrombie",null,null,{"$error":"#REF!"},37,"event32","Email SU - Abercrombie",37,0,53,32,"","",55,32,"v54","Check Out FAQ",55,32,"",""]
["event33","Errors",null,null,{"$error":"#REF!"},38,"event33","Errors",38,0,58,33,"","",60,33,"v41","Checkout Overlay",76,33,"",""]
["event34",null,null,null,"","","","",39,0,0,34,"","",63,34,"v36","Checkout Type",57,34,"",""]
["event35","Cart Value",null,null,{"$error":"#REF!"},40,"event35","Cart Value",40,0,46,35,"","",29,35,"v2","Country",0,35,"",""]
["event36","Model View",null,null,{"$error":"#REF!"},41,"event36","Model View",41,0,65,36,"","",34,36,"v4","Currency Code",61,36,"",""]
["event37","Click Color Swatches",null,null,{"$error":"#REF!"},42,"event37","Click Color Swatches",42,0,48,37,"","",0,37,"v68","Day of Week",0,37,"",""]
["event38","Units Added",null,null,{"$error":"#REF!"},43,"event38","Units Added",43,0,81,38,"","",65,38,"v10","Email Campaign Link ID",0,38,"",""]
["event39",null,null,null,"","","","",44,0,0,39,"","",58,39,"v69","Gender",0,39,"",""]
["event40","Account Creation - Unsuccessful",null,null,{"$error":"#REF!"},45,"event40","Account Creation - Unsuccessful",45,0,44,40,"","",0,40,"v51","Gift Box on Checkout",51,40,"",""]
["event41","Log In - Unsuccessful",null,null,{"$error":"#REF!"},46,"event41","Log In - Unsuccessful",46,0,62,41,"","",33,41,"v63","ID#?",62,41,"",""]
["event42",null,null,null,"","","","",47,0,0,42,"","",0,42,"v13","Internal Campaign",0,42,"",""]
["event43","Email SU - Hollister",null,null,{"$error":"#REF!"},48,"event43","Email SU - Hollister",48,0,54,43,"","",0,43,"v14","Internal Search Term",0,43,"",""]
["event44","Email SU - MA kids",null,null,{"$error":"#REF!"},49,"event44","Email SU - MA kids",49,0,56,44,"event40","Account Creation - Unsuccessful",0,44,"v31","Marketing Channel: Keyword",0,44,"",""]
["event45","Email SU - MA Gilly",null,null,{"$error":"#REF!"},50,"event45","Email SU - MA Gilly",50,0,55,45,"event5","Account Creations",0,45,"v5","Merchandising Category",0,45,"",""]
["event46","SMS SU - Abercrombie",null,null,{"$error":"#REF!"},51,"event46","SMS SU - Abercrombie",51,0,77,46,"event35","Cart Value",50,46,"v73","Model View",0,46,"",""]
["event47","SMS SU - Hollister",null,null,{"$error":"#REF!"},52,"event47","SMS SU - Hollister",52,0,79,47,"event55","Check-in to Club",0,47,"","",0,47,"",""]
["event48","Pref Card Used",null,null,{"$error":"#REF!"},53,"event48","Pref Card Used",53,0,68,48,"event37","Click Color Swatches",0,48,"v65","Number of Searches",0,48,"",""]
["event49","Share Facebook",null,null,{"$error":"#REF!"},54,"event49","Share Facebook",54,0,73,49,"event57","Creat Account via The Club",0,49,"v30","Order Number",0,49,"ch","Category"]
["event50","Share Twitter",null,null,{"$error":"#REF!"},55,"event50","Share Twitter",55,0,74,50,"event3","Email Opt Outs",0,50,"v46","Page Name",0,50,"c6","Parent Category ID"]
["event51","Share - Email to Friend",null,null,{"$error":"#REF!"},56,"event51","Share - Email to Friend",56,0,72,51,"","",40,51,"v21","Payment Method",0,51,"c39","pagename"]
["event52",null,null,null,"","","","",57,0,0,52,"event24","Email Sign Up",0,52,"v64","Previous Page",0,52,"c5","Category ID"]
["event53","SMS SU - Gilly",null,null,{"$error":"#REF!"},58,"event53","SMS SU - Gilly",58,0,78,53,"event32","Email SU - Abercrombie",27,53,"v22","Product Finding Method",0,53,"c27","Preferred Store"]
["event54","SMS UNSUB",null,null,{"$error":"#REF!"},59,"event54","SMS UNSUB",59,0,80,54,"event43","Email SU - Hollister",32,54,"v25","Products String Related*",0,54,"c12","User Errors"]
["event55","Check-in to Club",null,null,{"$error":"#REF!"},60,"event55","Check-in to Club",60,0,47,55,"event45","Email SU - MA Gilly",28,55,"v32","Promo Code",0,55,"c31","Visitor ID"]
["event56","Login",null,null,{"$error":"#REF!"},61,"event56","Login",61,0,63,56,"event44","Email SU - MA kids",62,56,"v6","PURCHASED FROM",0,56,"c17",0]
["event57","Creat Account via The Club",null,null,{"$error":"#REF!"},62,"event57","Creat Account via The Club",62,0,49,57,"event4","Email Unsubscribes ",31,57,"v28","Quickshop vs Normal Flow",0,57,"c33",0]
["event58","",null,null,"","","","",63,0,0,58,"event33","Errors",69,58,"v39","Recipient ID",0,58,"c16","Language ID"]
["event59","",null,null,"","","","",64,0,0,59,"event2","Internal Null Search",0,59,"v75","s_vi",0,59,"c2","Page Type"]
["event60","",null,null,"","","","",65,0,0,60,"event1","Internal Search",0,60,"v33","Same Shipping and Billing",0,60,"c30","JS File Version"]
["event61","",null,null,{"$f":"IF(F66<>\"\",RANK(F66,F:F,1),\"\")","v":""},{"$f":"IF(B66<>\"\",ROW(F66),\"\")","v":""},{"$f":"IF(F66<>\"\",A66,\"\")","v":""},{"$f":"IF(B66<>\"\",B66,\"\")","v":""},66,0,0,61,"event18","Local Currency",0,61,"v20","Search Trigger",0,61,"c35",0]
["event62","",null,null,"","","","",67,{"$f":"IFERROR(VLOOKUP(I67,E:H,4,FALSE),0)","v":0},0,62,"event41","Log In - Unsuccessful",0,62,"v56","Shipping City",0,62,"c40",0]
["event63","",null,null,"","","","",68,0,0,63,"event56","Login",41,63,"v34","Shipping Country",0,63,"c7",0]
["event64","",null,null,"","","","",69,0,0,64,"event17","Logins",52,64,"v26","Shipping State",0,64,"c21","Previous Page"]
["event65","",null,null,"","","","",70,0,0,65,{"$f":"IFERROR(INDEX($A$6:$A$105,MATCH(L70,$K$6:$K$105,0)),\"\")","v":"event36"},"Model View",48,65,{"$f":"IFERROR(INDEX($A$108:$A$207,MATCH(P70,$O$6:$O$105,0)),\"\")","v":"v38"},{"$f":"IFERROR(INDEX($B$108:$B$207,MATCH(P70,$O$6:$O$105,0)),\"\")","v":"Shipping Type on checkout"},0,65,{"$f":"IFERROR(INDEX($A$210:$A$310,MATCH(T70,$S$6:$S$105,0)),\"\")","v":"c28"},{"$f":"IFERROR(INDEX($B$211:$B$310,MATCH(T70,$S$6:$S$105,0)),\"\")","v":"Time of Day"}]
["event66","",null,null,"","","","",71,0,{"$f":"COUNTIF($B$6:$B$105, \"<=\"&$B71)","v":0},66,"event16",{"$f":"IFERROR(INDEX($B$6:$B$105,MATCH(L71,$K$6:$K$105,0)),\"\")","v":"Order Review"},{"$f":"COUNTIF($B$108:$B$207, \"<=\"&$B173)","v":48},66,"v27","Shipping Zip Code",0,66,"c22","Previous Page Name Global"]
["event67","",null,null,"","","","",72,0,0,67,"event15","Payment Information",71,67,"v1","Site",0,67,"c23","Search Results"]
["event68","",null,null,"","","","",73,0,0,68,"event48","Pref Card Used",37,68,"v29","Time of Day",0,68,"c15","New vs Return"]
["event69","",null,null,"","","","",74,0,0,69,"event11","Product View - Custom",39,69,"v58","Time to Complete Purchase",0,69,"c25","Visit Number"]
["event70","",null,null,"","","","",75,0,0,70,"event6",0,0,70,"v3","User Status",{"$f":"COUNTIF($B$211:$B$310, \"<=\"&$B279)","v":0},70,"c24","Search Phrase"]
["event71","",null,null,"","","","",76,0,0,71,"event19","Quick View - Product View",0,71,"v67","Visit Number ",0,71,"c3","Site"]
["event72","",null,null,"","","","",77,0,0,72,"event51","Share - Email to Friend",0,72,"v11","Visitor ID",0,72,"c1","Sub Category"]
["event73","",null,null,"","","","",78,0,0,73,"event49","Share Facebook",46,73,"","",0,73,"c29","Page URL"]
["event74","",null,null,"","","","",79,0,0,74,"event50","Share Twitter",0,74,"","",0,74,"c13",0]
["event75","",null,null,"","","","",80,0,0,75,"event13","Shipping Information",59,75,"","",0,75,"c26","Day of Week"]
["event76","",null,null,"","","","",81,0,0,76,"event14","Shipping Method",0,76,"","",0,76,"c32","Model View Detail"]
["event77","",null,null,"","","","",82,0,0,77,"event46","SMS SU - Abercrombie",0,77,"","",0,77,"",""]
["event78","",null,null,"","","","",83,0,0,78,"event53","SMS SU - Gilly",0,78,"","",0,78,"",""]
["event79","",null,null,"","","","",84,0,0,79,"event47","SMS SU - Hollister",0,79,"","",0,79,"",""]
["event80","",null,null,"","","","",85,0,0,80,"event54","SMS UNSUB",0,80,"","",0,80,"",""]
["event81","",null,null,"","","","",86,0,0,81,"event38","Units Added",0,81,"","",0,81,"",""]
["event82","",null,null,"","","","",87,0,0,82,"","",0,82,"","",0,82,"",""]
["event83","",null,null,"","","","",88,0,0,83,"","",0,83,"","",0,83,"",""]
["event84","",null,null,"","","","",89,0,0,84,"","",0,84,"","",0,84,"",""]
["event85","",null,null,"","","","",90,0,0,85,"","",0,85,"","",0,85,"",""]
["event86","",null,null,"","","","",91,0,0,86,"","",0,86,"","",0,86,"",""]
["event87","",null,null,"","","","",92,0,0,87,"","",0,87,"","",0,87,"",""]
["event88","",null,null,"","","","",93,0,0,88,"","",0,88,"","",0,88,"",""]
["event89","",null,null,"","","","",94,0,0,89,"","",0,89,"","",0,89,"",""]
["event90","",null,null,"","","","",95,0,0,90,"","",0,90,"","",0,90,"",""]
["event91","",null,null,"","","","",96,0,0,91,"","",0,91,"","",0,91,"",""]
["event92","",null,null,"","","","",97,0,0,92,"","",0,92,"","",0,92,"",""]
["event93","",null,null,"","","","",98,0,0,93,"","",0,93,"","",0,93,"",""]
["event94","",null,null,"","","","",99,0,0,94,"","",0,94,"","",0,94,"",""]
["event95","",null,null,"","","","",100,0,0,95,"","",0,95,"","",0,95,"",""]
["event96","",null,null,"","","","",101,0,0,96,"","",0,96,"","",0,96,"",""]
["event97","",null,null,"","","","",102,0,0,97,"","",0,97,"","",0,97,"",""]
["event98","",null,null,"","","","",103,0,0,98,"","",0,98,"","",0,98,"",""]
["event99","",null,null,"","","","",104,0,0,99,"","",0,99,"","",0,99,"",""]
["event100","",null,null,"","","","",105,0,0,100,"","",0,100,"","",0,100,"",""]
[null,"",null,null,"","","","",106,0,0,1,"",null,0,1,"",null,0,1,""]
["eVars","****Evars****",null,null,{"$error":"#REF!"},107,"eVars","****Evars****",107,0,43,1,"",null,25,1,"",null,0,1,""]
["v1","Site",null,null,{"$error":"#REF!"},108,"v1","Site",108,0,76,1,"",null,{"$f":"COUNTIF($B$108:$B$207, \"<=\"&$B211)","v":30},1,"",null,0,1,""]
["v2","Country",null,null,{"$error":"#REF!"},109,"v2","Country",109,0,48,1,"",null,{"$f":"COUNTIF($B$108:$B$207, \"<=\"&$B212)","v":67},1,"",null,{"$f":"COUNTIF($B$211:$B$310, \"<=\"&$B314)","v":50},1,""]
["v3","User Status",null,null,{"$error":"#REF!"},110,"v3","User Status",110,0,81,1,"",null,{"$f":"COUNTIF($B$108:$B$207, \"<=\"&$B213)","v":50},1,"",null,{"$f":"COUNTIF($B$211:$B$310, \"<=\"&$B318)","v":51},1,""]
["v4","Currency Code",null,null,{"$error":"#REF!"},111,"v4","Currency Code",111,0,49,1,"",null,{"$f":"COUNTIF($B$108:$B$207, \"<=\"&$B214)","v":67},1,"",null,73,1,""]
["v5","Merchandising Category",null,null,{"$error":"#REF!"},112,"v5","Merchandising Category",112,0,64,1,"",null,{"$f":"COUNTIF($B$108:$B$207, \"<=\"&#REF!)","v":0},1,"",null,76,1,""]
["v6","PURCHASED FROM",null,null,{"$error":"#REF!"},113,"v6","PURCHASED FROM",113,0,70,1,"",null,35,1,"",null,54,1,""]
["v7","A/B Test1",null,null,{"$error":"#REF!"},114,"v7","A/B Test1",114,0,43,1,"",null,30,1,"",null,54,1,""]
["v8",null,null,null,"","","","",115,0,0,1,"",null,50,1,"",null,48,1,""]
["v9",null,null,null,"","","","",116,0,0,1,"",null,0,1,"",null,48,1,""]
["v10","Email Campaign Link ID",null,null,{"$error":"#REF!"},117,"v10","Email Campaign Link ID",117,0,49,1,"",null,0,1,"",null,68,1,""]
["v11","Visitor ID",null,null,{"$error":"#REF!"},118,"v11","Visitor ID",118,0,81,1,"",null,0,1,"",null,{"$f":"COUNTIF($B$211:$B$310, \"<=\"&$B315)","v":68},1,""]
["v12","Campaign Channel",null,null,{"$error":"#REF!"},119,"v12","Campaign Channel",119,0,45,1,"",null,0,1,"",null,{"$f":"COUNTIF($B$211:$B$310, \"<=\"&$B316)","v":70},1,""]
["v13","Internal Campaign",null,null,{"$error":"#REF!"},120,"v13","Internal Campaign",120,0,58,1,"",null,38,1,"",null,{"$f":"COUNTIF($B$211:$B$310, \"<=\"&$B317)","v":54},1,""]
["v14","Internal Search Term",null,null,{"$error":"#REF!"},121,"v14","Internal Search Term",121,0,60,1,"",null,69,1,"",null,{"$f":"COUNTIF($B$211:$B$310, \"<=\"&$B313)","v":58},1,""]
["v15",null,null,null,"","","","",122,0,0,1,"",null,0,1,"",null,{"$f":"COUNTIF($B$211:$B$310, \"<=\"&#REF!)","v":0},1,""]
["v16",null,null,null,"","","","",123,0,0,1,"",null,52,1,"",null,{"$f":"COUNTIF($B$211:$B$310, \"<=\"&#REF!)","v":0},1,""]
["v17",null,null,null,"","","","",124,0,0,1,"",null,46,1,"",null,{"$f":"COUNTIF($B$211:$B$310, \"<=\"&#REF!)","v":0},1,""]
["v18",null,null,null,"","","","",125,0,0,1,"",null,43,1,"",null,{"$f":"COUNTIF($B$211:$B$310, \"<=\"&#REF!)","v":0},1,""]
["v19",null,null,null,"","","","",126,0,0,1,"",null,0,1,"",null,{"$f":"COUNTIF($B$211:$B$310, \"<=\"&#REF!)","v":0},1,""]
["v20","Search Trigger",null,null,{"$error":"#REF!"},127,"v20","Search Trigger",127,0,71,1,"",null,0,1,"",null,{"$f":"COUNTIF($B$211:$B$310, \"<=\"&#REF!)","v":0},1,""]
["v21","Payment Method",null,null,{"$error":"#REF!"},128,"v21","Payment Method",128,0,67,1,"",null,0,1,"",null,{"$f":"COUNTIF($B$211:$B$310, \"<=\"&#REF!)","v":0},1,""]
["v22","Product Finding Method",null,null,{"$error":"#REF!"},129,"v22","Product Finding Method",129,0,68,1,"",null,51,1,"",null,{"$f":"COUNTIF($B$211:$B$310, \"<=\"&#REF!)","v":0},1,""]
["v23",null,null,null,{"$f":"IF(F130<>\"\",RANK(F130,F:F,1),\"\")","v":""},{"$f":"IF(B130<>\"\",ROW(F130),\"\")","v":""},{"$f":"IF(F130<>\"\",A130,\"\")","v":""},{"$f":"IF(B130<>\"\",B130,\"\")","v":""},130,0,0,1,"",null,52,1,"",null,{"$f":"COUNTIF($B$211:$B$310, \"<=\"&$B334)","v":51},1,""]
["v24",null,null,null,"","","","",131,{"$f":"IFERROR(VLOOKUP(I131,E:H,4,FALSE),0)","v":0},0,1,"",null,52,1,"",null,73,1,""]
["v25","Products String Related*",null,null,{"$error":"#REF!"},132,"v25","Products String Related*",132,0,70,1,"",null,60,1,"",null,0,1,""]
["v26","Shipping State",null,null,{"$error":"#REF!"},133,"v26","Shipping State",133,0,76,1,"",null,60,1,"",null,0,1,""]
["v27","Shipping Zip Code",null,null,{"$error":"#REF!"},134,"v27","Shipping Zip Code",134,0,76,1,{"$f":"IFERROR(INDEX($A$6:$A$105,MATCH(L134,$K$6:$K$105,0)),\"\")","v":""},null,70,1,{"$f":"IFERROR(INDEX($A$108:$A$207,MATCH(P134,$O$6:$O$105,0)),\"\")","v":""},null,0,1,{"$f":"IFERROR(INDEX($A$210:$A$310,MATCH(T134,$S$6:$S$105,0)),\"\")","v":""}]
["v28","Quickshop vs Normal Flow",null,null,{"$error":"#REF!"},135,"v28","Quickshop vs Normal Flow",135,0,{"$f":"COUNTIF($B$6:$B$105, \"<=\"&$B135)","v":71},1,"",null,{"$f":"COUNTIF($B$108:$B$207, \"<=\"&$B237)","v":37},1,"",null,0,1,""]
["v29","Time of Day",null,null,{"$error":"#REF!"},136,"v29","Time of Day",136,0,80,1,"",null,51,1,"",null,0,1,""]
["v30","Order Number",null,null,{"$error":"#REF!"},137,"v30","Order Number",137,0,65,1,"",null,68,1,"",null,0,1,""]
["v31","Marketing Channel: Keyword",null,null,{"$error":"#REF!"},138,"v31","Marketing Channel: Keyword",138,0,64,1,"",null,50,1,"",null,0,1,""]
["v32","Promo Code",null,null,{"$error":"#REF!"},139,"v32","Promo Code",139,0,70,1,"",null,43,1,"",null,0,1,""]
["v33","Same Shipping and Billing",null,null,{"$error":"#REF!"},140,"v33","Same Shipping and Billing",140,0,71,1,"",null,72,1,"",null,0,1,""]
["v34","Shipping Country",null,null,{"$error":"#REF!"},141,"v34","Shipping Country",141,0,74,1,"",null,46,1,"",null,0,1,""]
["v35","Billing Country",null,null,{"$error":"#REF!"},142,"v35","Billing Country",142,0,45,1,"",null,0,1,"",null,0,1,""]
["v36","Checkout Type",null,null,{"$error":"#REF!"},143,"v36","Checkout Type",143,0,47,1,"",null,50,1,"",null,0,1,""]
["v37",null,null,null,"","","","",144,0,0,1,"",null,0,1,"",null,0,1,""]
["v38","Shipping Type on checkout",null,null,{"$error":"#REF!"},145,"v38","Shipping Type on checkout",145,0,76,1,"",null,0,1,"",null,0,1,""]
["v39","Recipient ID",null,null,{"$error":"#REF!"},146,"v39","Recipient ID",146,0,71,1,"",null,0,1,"",null,0,1,""]
["v40",null,null,null,"","","","",147,0,0,1,"",null,34,1,"",null,0,1,""]
["v41","Checkout Overlay",null,null,{"$error":"#REF!"},148,"v41","Checkout Overlay",148,0,47,1,"",null,50,1,"",null,0,1,""]
["v42",null,null,null,"","","","",149,0,0,1,"",null,0,1,"",null,0,1,""]
["v43",null,null,null,"","","","",150,0,0,1,"",null,0,1,"",null,0,1,""]
["v44",null,null,null,"","","","",151,0,0,1,"",null,0,1,"",null,0,1,""]
["v45",null,null,null,"","","","",152,0,0,1,"",null,0,1,"",null,0,1,""]
["v46","Page Name",null,null,{"$error":"#REF!"},153,"v46","Page Name",153,0,66,1,"",null,0,1,"",null,0,1,""]
["v47",null,null,null,"","","","",154,0,0,1,"",null,0,1,"",null,0,1,""]
["v48",null,null,null,"","","","",155,0,0,1,"",null,0,1,"",null,0,1,""]
["v49",null,null,null,"","","","",156,0,0,1,"",null,0,1,"",null,0,1,""]
["v50",null,null,null,"","","","",157,0,0,1,"",null,0,1,"",null,0,1,""]
["v51","Gift Box on Checkout",null,null,{"$error":"#REF!"},158,"v51","Gift Box on Checkout",158,0,58,1,"",null,0,1,"",null,0,1,""]
["v52",null,null,null,"","","","",159,0,0,1,"",null,0,1,"",null,0,1,""]
["v53","Author Code",null,null,{"$error":"#REF!"},160,"v53","Author Code",160,0,45,1,"",null,0,1,"",null,0,1,""]
["v54","Check Out FAQ",null,null,{"$error":"#REF!"},161,"v54","Check Out FAQ",161,0,46,1,"",null,0,1,"",null,0,1,""]
["v55","Billing City",null,null,{"$error":"#REF!"},162,"v55","Billing City",162,0,45,1,"",null,0,1,"",null,0,1,""]
["v56","Shipping City",null,null,{"$error":"#REF!"},163,"v56","Shipping City",163,0,74,1,"",null,0,1,"",null,0,1,""]
["v57","Check Out Edit/Remove",null,null,{"$error":"#REF!"},164,"v57","Check Out Edit/Remove",164,0,46,1,"",null,0,1,"",null,0,1,""]
["v58","Time to Complete Purchase",null,null,{"$error":"#REF!"},165,"v58","Time to Complete Purchase",165,0,80,1,"",null,0,1,"",null,0,1,""]
["v59",null,null,null,"","","","",166,0,0,1,"",null,0,1,"",null,0,1,""]
["v60",null,null,null,"","","","",167,0,0,1,"",null,0,1,"",null,0,1,""]
["v61",null,null,null,"","","","",168,0,0,1,"",null,0,1,"",null,0,1,""]
["v62",null,null,null,"","","","",169,0,0,1,"",null,0,1,"",null,0,1,""]
["v63","ID#?",null,null,{"$error":"#REF!"},170,"v63","ID#?",170,0,58,1,"",null,0,1,"",null,0,1,""]
["v64","Previous Page",null,null,{"$error":"#REF!"},171,"v64","Previous Page",171,0,68,1,"",null,0,1,"",null,0,1,""]
["v65","Number of Searches",null,null,{"$error":"#REF!"},172,"v65","Number of Searches",172,0,65,1,"",null,0,1,"",null,0,1,""]
["v66","Number of Searches",null,null,{"$error":"#REF!"},173,"v66","Number of Searches",173,0,65,1,"",null,0,1,"",null,0,1,""]
["v67","Visit Number ",null,null,{"$error":"#REF!"},174,"v67","Visit Number ",174,0,81,1,"",null,0,1,"",null,0,1,""]
["v68","Day of Week",null,null,{"$error":"#REF!"},175,"v68","Day of Week",175,0,49,1,"",null,0,1,"",null,0,1,""]
["v69","Gender",null,null,{"$error":"#REF!"},176,"v69","Gender",176,0,58,1,"",null,0,1,"",null,0,1,""]
["v70",null,null,null,"","","","",177,0,0,1,"",null,0,1,"",null,0,1,""]
["v71",null,null,null,"","","","",178,0,0,1,"",null,0,1,"",null,0,1,""]
["v72",null,null,null,"","","","",179,0,0,1,"",null,0,1,"",null,0,1,""]
["v73","Model View",null,null,{"$error":"#REF!"},180,"v73","Model View",180,0,65,1,"",null,0,1,"",null,0,1,""]
["v74",null,null,null,"","","","",181,0,0,1,"",null,0,1,"",null,0,1,""]
["v75","s_vi",null,null,{"$error":"#REF!"},182,"v75","s_vi",182,0,71,1,"",null,0,1,"",null,0,1,""]
["v76","",null,null,"","","","",183,0,0,1,"",null,0,1,"",null,0,1,""]
["v77","",null,null,"","","","",184,0,0,1,"",null,0,1,"",null,0,1,""]
["v78","",null,null,"","","","",185,0,0,1,"",null,0,1,"",null,0,1,""]
["v79","",null,null,"","","","",186,0,0,1,"",null,0,1,"",null,0,1,""]
["v80","",null,null,"","","","",187,0,0,1,"",null,0,1,"",null,0,1,""]
["v81","",null,null,"","","","",188,0,0,1,"",null,0,1,"",null,0,1,""]
["v82","",null,null,"","","","",189,0,0,1,"",null,0,1,"",null,0,1,""]
["v83","",null,null,"","","","",190,0,0,1,"",null,0,1,"",null,0,1,""]
["v84","",null,null,"","","","",191,0,0,1,"",null,0,1,"",null,0,1,""]
["v85","",null,null,"","","","",192,0,0,1,"",null,0,1,"",null,0,1,""]
["v86","",null,null,"","","","",193,0,0,1,"",null,0,1,"",null,0,1,""]
["v87","",null,null,{"$f":"IF(F194<>\"\",RANK(F194,F:F,1),\"\")","v":""},{"$f":"IF(B194<>\"\",ROW(F194),\"\")","v":""},{"$f":"IF(F194<>\"\",A194,\"\")","v":""},{"$f":"IF(B194<>\"\",B194,\"\")","v":""},194,0,0,1,"",null,0,1,"",null,{"$f":"COUNTIF($B$211:$B$310, \"<=\"&$B398)","v":0},1,""]
["v88","",null,null,"","","","",195,{"$f":"IFERROR(VLOOKUP(I195,E:H,4,FALSE),0)","v":0},0,1,"",null,0,1,"",null,0,1,""]
["v89","",null,null,"","","","",196,0,0,1,"",null,0,1,"",null,0,1,""]
["v90","",null,null,"","","","",197,0,0,1,"",null,0,1,"",null,0,1,""]
["v91","",null,null,"","","","",198,0,0,1,{"$f":"IFERROR(INDEX($A$6:$A$105,MATCH(L198,$K$6:$K$105,0)),\"\")","v":""},null,0,1,{"$f":"IFERROR(INDEX($A$108:$A$207,MATCH(P198,$O$6:$O$105,0)),\"\")","v":""},null,0,1,{"$f":"IFERROR(INDEX($A$210:$A$310,MATCH(T198,$S$6:$S$105,0)),\"\")","v":""}]
["v92","",null,null,"","","","",199,0,{"$f":"COUNTIF($B$6:$B$105, \"<=\"&$B199)","v":0},1,"",null,{"$f":"COUNTIF($B$108:$B$207, \"<=\"&$B301)","v":0},1,"",null,0,1,""]
["v93","",null,null,"","","","",200,0,0,1,"",null,0,1,"",null,0,1,""]
["v94","",null,null,"","","","",201,0,0,1,"",null,0,1,"",null,0,1,""]
["v95","",null,null,"","","","",202,0,0,1,"",null,0,1,"",null,0,1,""]
["v96","",null,null,"","","","",203,0,0,1,"",null,0,1,"",null,0,1,""]
["v97","",null,null,"","","","",204,0,0,1,"",null,0,1,"",null,0,1,""]
["v98","",null,null,"","","","",205,0,0,1,"",null,0,1,"",null,0,1,""]
["v99","",null,null,"","","","",206,0,0,1,"",null,0,1,"",null,0,1,""]
["v100","",null,null,"","","","",207,0,0,1,"",null,0,1,"",null,0,1,""]
[null,"",null,null,"","","","",208,0,0,1,"",null,0,1,"",null,0,1,""]
["sProps (Traffic)","****Sprops****",null,null,{"$error":"#REF!"},209,"sProps (Traffic)","****Sprops****",209,0,43,1,"",null,0,1,"",null,0,1,""]
["ch","Site Sections",null,null,{"$error":"#REF!"},{"$f":"IF(B211<>\"\",ROW(F210),\"\")","v":210},"ch",{"$f":"IF(B211<>\"\",B211,\"\")","v":"Category"},210,0,{"$f":"COUNTIF($B$6:$B$105, \"<=\"&$B211)","v":46},1,"",null,0,1,"",null,0,1,""]
["c1","Category",null,null,{"$error":"#REF!"},{"$f":"IF(B212<>\"\",ROW(F211),\"\")","v":211},"c1",{"$f":"IF(B212<>\"\",B212,\"\")","v":"Sub Category"},211,0,{"$f":"COUNTIF($B$6:$B$105, \"<=\"&$B212)","v":80},1,"",null,{"$f":"COUNTIF($B$108:$B$207, \"<=\"&$B314)","v":30},1,"",null,0,1,""]
["c2","Sub Category",null,null,{"$error":"#REF!"},{"$f":"IF(B213<>\"\",ROW(F212),\"\")","v":212},"c2",{"$f":"IF(B213<>\"\",B213,\"\")","v":"Page Type"},212,0,{"$f":"COUNTIF($B$6:$B$105, \"<=\"&$B213)","v":66},1,"",null,{"$f":"COUNTIF($B$108:$B$207, \"<=\"&$B318)","v":34},1,"",null,0,1,""]
["c3","Page Type",null,null,{"$error":"#REF!"},{"$f":"IF(B214<>\"\",ROW(F213),\"\")","v":213},"c3",{"$f":"IF(B214<>\"\",B214,\"\")","v":"Site"},213,0,{"$f":"COUNTIF($B$6:$B$105, \"<=\"&$B214)","v":76},1,"",null,69,1,"",null,0,1,""]
["c4","Site",null,null,{"$error":"#REF!"},{"$f":"IF(#REF!<>\"\",ROW(F214),\"\")","v":{"$error":"#REF!"}},{"$error":"#REF!"},{"$f":"IF(#REF!<>\"\",#REF!,\"\")","v":{"$error":"#REF!"}},214,0,{"$f":"COUNTIF($B$6:$B$105, \"<=\"&#REF!)","v":0},1,"",null,72,1,"",null,0,1,""]
["c5","Country",null,null,{"$error":"#REF!"},215,"c5","Country",215,0,48,1,"",null,40,1,"",null,0,1,""]
["c6","Category ID",null,null,{"$error":"#REF!"},216,"c6","Category ID",216,0,46,1,"",null,40,1,"",null,0,1,""]
["c7","Parent Category ID",null,null,{"$error":"#REF!"},217,"c7","Parent Category ID",217,0,66,1,"",null,29,1,"",null,0,1,""]
["c8",null,null,null,"","","","",218,0,0,1,"",null,29,1,"",null,0,1,""]
["c9",null,null,null,"","","","",219,0,0,1,"",null,60,1,"",null,0,1,""]
["c10",null,null,null,"","","","",220,0,0,1,"",null,{"$f":"COUNTIF($B$108:$B$207, \"<=\"&$B315)","v":58},1,"",null,0,1,""]
["c11",null,null,null,"","","","",221,0,0,1,"",null,{"$f":"COUNTIF($B$108:$B$207, \"<=\"&$B316)","v":61},1,"",null,0,1,""]
["c12","Error Previous Page",null,null,{"$error":"#REF!"},222,"c12","Error Previous Page",222,0,57,1,"",null,{"$f":"COUNTIF($B$108:$B$207, \"<=\"&$B317)","v":38},1,"",null,0,1,""]
["c13","User Errors",null,null,{"$error":"#REF!"},223,"c13","User Errors",223,0,81,1,"",null,{"$f":"COUNTIF($B$108:$B$207, \"<=\"&$B313)","v":50},1,"",null,0,1,""]
["c14",null,null,null,"","","","",224,0,0,1,"",null,{"$f":"COUNTIF($B$108:$B$207, \"<=\"&#REF!)","v":0},1,"",null,0,1,""]
["c15","Product Features",null,null,{"$error":"#REF!"},225,"c15","Product Features",225,0,68,1,"",null,{"$f":"COUNTIF($B$108:$B$207, \"<=\"&#REF!)","v":0},1,"",null,0,1,""]
["c16","New vs Return",null,null,{"$error":"#REF!"},226,"c16","New vs Return",226,0,65,1,"",null,{"$f":"COUNTIF($B$108:$B$207, \"<=\"&#REF!)","v":0},1,"",null,0,1,""]
["c17","Language ID",null,null,{"$error":"#REF!"},227,"c17","Language ID",227,0,60,1,"",null,{"$f":"COUNTIF($B$108:$B$207, \"<=\"&#REF!)","v":0},1,"",null,0,1,""]
["c18",null,null,null,"","","","",228,0,0,1,"",null,{"$f":"COUNTIF($B$108:$B$207, \"<=\"&#REF!)","v":0},1,"",null,0,1,""]
["c19",null,null,null,"","","","",229,0,0,1,"",null,{"$f":"COUNTIF($B$108:$B$207, \"<=\"&#REF!)","v":0},1,"",null,0,1,""]
["c20",null,null,null,"","","","",230,0,0,1,"",null,{"$f":"COUNTIF($B$108:$B$207, \"<=\"&#REF!)","v":0},1,"",null,0,1,""]
["c21","PDP Collection ID",null,null,{"$error":"#REF!"},231,"c21","PDP Collection ID",231,0,67,1,"",null,{"$f":"COUNTIF($B$108:$B$207, \"<=\"&#REF!)","v":0},1,"",null,0,1,""]
["c22","Previous Page",null,null,{"$error":"#REF!"},232,"c22","Previous Page",232,0,68,1,"",null,34,1,"",null,0,1,""]
["c23","Previous Page Name Global",null,null,{"$error":"#REF!"},233,"c23","Previous Page Name Global",233,0,68,1,"",null,69,1,"",null,0,1,""]
["c24","Search Results",null,null,{"$error":"#REF!"},234,"c24","Search Results",234,0,71,1,"",null,0,1,"",null,0,1,""]
["c25","Search Phrase",null,null,{"$error":"#REF!"},235,"c25","Search Phrase",235,0,71,1,"",null,0,1,"",null,0,1,""]
["c26","Visit Number",null,null,{"$error":"#REF!"},236,"c26","Visit Number",236,0,81,1,"",null,0,1,"",null,0,1,""]
["c27","Day of Week",null,null,{"$error":"#REF!"},237,"c27","Day of Week",237,0,49,1,"",null,0,1,"",null,0,1,""]
["c28","Preferred Store",null,null,{"$error":"#REF!"},238,"c28","Preferred Store",238,0,68,1,"",null,0,1,"",null,0,1,""]
["c29","Time of Day",null,null,{"$error":"#REF!"},239,"c29","Time of Day",239,0,80,1,"",null,0,1,"",null,0,1,""]
["c30","Page URL",null,null,{"$error":"#REF!"},240,"c30","Page URL",240,0,66,1,"",null,0,1,"",null,0,1,""]
["c31","JS File Version",null,null,{"$error":"#REF!"},241,"c31","JS File Version",241,0,60,1,"",null,0,1,"",null,0,1,""]
["c32","Visitor ID",null,null,{"$error":"#REF!"},242,"c32","Visitor ID",242,0,81,1,"",null,0,1,"",null,0,1,""]
["c33","Model View Detail",null,null,{"$error":"#REF!"},243,"c33","Model View Detail",243,0,65,1,"",null,0,1,"",null,0,1,""]
["c34",null,null,null,"","","","",244,0,0,1,"",null,0,1,"",null,0,1,""]
["c35","Page Viewed %",null,null,{"$error":"#REF!"},245,"c35","Page Viewed %",245,0,66,1,"",null,0,1,"",null,0,1,""]
["c36",null,null,null,"","","","",246,0,0,1,"",null,0,1,"",null,0,1,""]
["c37",null,null,null,"","","","",247,0,0,1,"",null,0,1,"",null,0,1,""]
["c38",null,null,null,"","","","",248,0,0,1,"",null,0,1,"",null,0,1,""]
["c39","Color selected in Product Slider",null,null,{"$error":"#REF!"},249,"c39","Color selected in Product Slider",249,0,48,1,"",null,0,1,"",null,0,1,""]
["c40","pagename",null,null,{"$error":"#REF!"},250,"c40","pagename",250,0,66,1,"",null,0,1,"",null,0,1,""]
["c41",null,null,null,"","","","",251,0,0,1,"",null,0,1,"",null,0,1,""]
["c42",null,null,null,"","","","",252,0,0,1,"",null,0,1,"",null,0,1,""]
["c43",null,null,null,"","","","",253,0,0,1,"",null,0,1,"",null,0,1,""]
["c44",null,null,null,"","","","",254,0,0,1,"",null,0,1,"",null,0,1,""]
["c45",null,null,null,"","","","",255,0,0,1,"",null,0,1,"",null,0,1,""]
["c46",null,null,null,"","","","",256,0,0,1,"",null,0,1,"",null,0,1,""]
["c47",null,null,null,"","","","",257,0,0,1,"",null,0,1,"",null,0,1,""]
["c48",null,null,null,{"$f":"IF(F258<>\"\",RANK(F258,F:F,1),\"\")","v":""},{"$f":"IF(B258<>\"\",ROW(F258),\"\")","v":""},{"$f":"IF(F258<>\"\",A258,\"\")","v":""},{"$f":"IF(B258<>\"\",B258,\"\")","v":""},258,0,0,1,"",null,0,1,"",null,{"$f":"COUNTIF($B$211:$B$310, \"<=\"&$B462)","v":0},1,""]
["c49",null,null,null,"","","","",259,{"$f":"IFERROR(VLOOKUP(I259,E:H,4,FALSE),0)","v":0},0,1,"",null,0,1,"",null,0,1,""]
["c50",null,null,null,"","","","",260,0,0,1,"",null,0,1,"",null,0,1,""]
["c51",null,null,null,"","","","",261,0,0,1,"",null,0,1,"",null,0,1,""]
["c52",null,null,null,"","","","",262,0,0,1,{"$f":"IFERROR(INDEX($A$6:$A$105,MATCH(L262,$K$6:$K$105,0)),\"\")","v":""},null,0,1,{"$f":"IFERROR(INDEX($A$108:$A$207,MATCH(P262,$O$6:$O$105,0)),\"\")","v":""},null,0,1,{"$f":"IFERROR(INDEX($A$210:$A$310,MATCH(T262,$S$6:$S$105,0)),\"\")","v":""}]
["c53","",null,null,"","","","",263,0,{"$f":"COUNTIF($B$6:$B$105, \"<=\"&$B263)","v":0},1,"",null,{"$f":"COUNTIF($B$108:$B$207, \"<=\"&$B365)","v":0},1,"",null,0,1,""]
["c54","",null,null,"","","","",264,0,0,1,"",null,0,1,"",null,0,1,""]
["c55","",null,null,"","","","",265,0,0,1,"",null,0,1,"",null,0,1,""]
["c56","",null,null,"","","","",266,0,0,1,"",null,0,1,"",null,0,1,""]
["c57","",null,null,"","","","",267,0,0,1,"",null,0,1,"",null,0,1,""]
["c58","",null,null,"","","","",268,0,0,1,"",null,0,1,"",null,0,1,""]
["c59","",null,null,"","","","",269,0,0,1,"",null,0,1,"",null,0,1,""]
["c60","",null,null,"","","","",270,0,0,1,"",null,0,1,"",null,0,1,""]
["c61","",null,null,"","","","",271,0,0,1,"",null,0,1,"",null,0,1,""]
["c62","",null,null,"","","","",272,0,0,1,"",null,0,1,"",null,0,1,""]
["c63","",null,null,"","","","",273,0,0,1,"",null,0,1,"",null,0,1,""]
["c64","",null,null,"","","","",274,0,0,1,"",null,0,1,"",null,0,1,""]
["c65","",null,null,"","","","",275,0,0,1,"",null,0,1,"",null,0,1,""]
["c66","",null,null,"","","","",276,0,0,1,"",null,0,1,"",null,0,1,""]
["c67","",null,null,"","","","",277,0,0,1,"",null,0,1,"",null,0,1,""]
["c68","",null,null,"","","","",278,0,0,1,"",null,0,1,"",null,0,1,""]
["c69","",null,null,"","","","",279,0,0,1,"",null,0,1,"",null,0,1,""]
["c70","",null,null,"","","","",280,0,0,1,"",null,0,1,"",null,0,1,""]
["c71","",null,null,"","","","",281,0,0,1,"",null,0,1,"",null,0,1,""]
["c72","",null,null,"","","","",282,0,0,1,"",null,0,1,"",null,0,1,""]
["c73","",null,null,"","","","",283,0,0,1,"",null,0,1,"",null,0,1,""]
["c74","",null,null,"","","","",284,0,0,1,"",null,0,1,"",null,0,1,""]
["c75","",null,null,"","","","",285,0,0,1,"",null,0,1,"",null,0,1,""]
["c76","",null,null,"","","","",286,0,0,1,"",null,0,1,"",null,0,1,""]
["c77","",null,null,"","","","",287,0,0,1,"",null,0,1,"",null,0,1,""]
["c78","",null,null,"","","","",288,0,0,1,"",null,0,1,"",null,0,1,""]
["c79","",null,null,"","","","",289,0,0,1,"",null,0,1,"",null,0,1,""]
["c80","",null,null,"","","","",290,0,0,1,"",null,0,1,"",null,0,1,""]
["c81","",null,null,"","","","",291,0,0,1,"",null,0,1,"",null,0,1,""]
["c82","",null,null,"","","","",292,0,0,1,"",null,0,1,"",null,0,1,""]
["c83","",null,null,"","","","",293,0,0,1,"",null,0,1,"",null,0,1,""]
["c84","",null,null,"","","","",294,0,0,1,"",null,0,1,"",null,0,1,""]
["c85","",null,null,"","","","",295,0,0,1,"",null,0,1,"",null,0,1,""]
["c86","",null,null,"","","","",296,0,0,1,"",null,0,1,"",null,0,1,""]
["c87","",null,null,"","","","",297,0,0,1,"",null,0,1,"",null,0,1,""]
["c88","",null,null,"","","","",298,0,0,1,"",null,0,1,"",null,0,1,""]
["c89","",null,null,"","","","",299,0,0,1,"",null,0,1,"",null,0,1,""]
["c90","",null,null,"","","","",300,0,0,1,"",null,0,1,"",null,0,1,""]
["c91","",null,null,"","","","",301,0,0,1,"",null,0,1,"",null,0,1,""]
["c92","",null,null,"","","","",302,0,0,1,"",null,0,1,"",null,0,1,""]
["c93","",null,null,"","","","",303,0,0,1,"",null,0,1,"",null,0,1,""]
["c94","",null,null,"","","","",304,0,0,1,"",null,0,1,"",null,0,1,""]
["c95","",null,null,"","","","",305,0,0,1,"",null,0,1,"",null,0,1,""]
["c96","",null,null,"","","","",306,0,0,1,"",null,0,1,"",null,0,1,""]
["c97","",null,null,"","","","",307,0,0,1,"",null,0,1,"",null,0,1,""]
["c98","",null,null,"","","","",308,0,0,1,"",null,0,1,"",null,0,1,""]
["c99","",null,null,"","","","",309,0,0,1,"",null,0,1,"",null,0,1,""]
["c100","",null,null,"","","","",310,0,0,1,"",null,0,1,"",null,0,1,""]
[null,"",null,null,"","","","",311,0,0,1,"",null,0,1,"",null,0,1,""]
["Other","",null,null,"","","","",312,0,0,1,"",null,0,1,"",null,0,1,""]
["pageName","Page Name",null,null,{"$error":"#REF!"},{"$f":"IF(B314<>\"\",ROW(F313),\"\")","v":313},{"$f":"IF(F313<>\"\",A314,\"\")","v":"ch"},{"$f":"IF(B314<>\"\",B314,\"\")","v":"Channel"},313,0,{"$f":"COUNTIF($B$6:$B$105, \"<=\"&$B314)","v":46},1,"",null,0,1,"",null,0,1,""]
["ch","Channel",null,null,{"$error":"#REF!"},{"$f":"IF(B318<>\"\",ROW(F314),\"\")","v":314},{"$f":"IF(F314<>\"\",A318,\"\")","v":"h1"},{"$f":"IF(B318<>\"\",B318,\"\")","v":"Content Type Hierarchy"},314,0,{"$f":"COUNTIF($B$6:$B$105, \"<=\"&$B318)","v":48},1,"",null,0,1,"",null,0,1,""]
["ns","Report Suite",null,null,{"$error":"#REF!"},315,"h2","Url Directory Structure",315,0,81,1,"",null,0,1,"",null,0,1,""]
["server","Server",null,null,{"$error":"#REF!"},316,"h3","Zonename:Taxa:Taxb",316,0,81,1,"",null,0,1,"",null,0,1,""]
["events","Events",null,null,{"$error":"#REF!"},317,"h4","Heirarchy 4",317,0,58,1,"",null,0,1,"",null,0,1,""]
["h1","Content Type Hierarchy",null,null,{"$error":"#REF!"},318,"h5","Heirarchy 5",318,0,58,1,"",null,0,1,"",null,0,1,""]
["h2","Url Directory Structure",null,null,{"$error":"#REF!"},319,"bw","Browser Width",319,0,45,1,"",null,0,1,"",null,0,1,""]
["h3","Zonename:Taxa:Taxb",null,null,{"$error":"#REF!"},320,"bh","Browser Height",320,0,45,1,"",null,0,1,"",null,0,1,""]
["h4","Heirarchy 4",null,null,{"$error":"#REF!"},321,"s","Screen Resolution",321,0,71,1,"",null,0,1,"",null,0,1,""]
["h5","Heirarchy 5",null,null,{"$f":"IF(F322<>\"\",RANK(F322,F:F,1),\"\")","v":{"$error":"#REF!"}},{"$f":"IF(B315<>\"\",ROW(F322),\"\")","v":322},{"$f":"IF(F322<>\"\",A315,\"\")","v":"ns"},{"$f":"IF(B315<>\"\",B315,\"\")","v":"Report Suite"},322,0,{"$f":"COUNTIF($B$6:$B$105, \"<=\"&$B315)","v":71},1,"",null,0,1,"",null,{"$f":"COUNTIF($B$211:$B$310, \"<=\"&$B526)","v":0},1,""]
["bw","Browser Width",null,null,{"$error":"#REF!"},{"$f":"IF(B316<>\"\",ROW(F323),\"\")","v":323},{"$f":"IF(F323<>\"\",A316,\"\")","v":"server"},{"$f":"IF(B316<>\"\",B316,\"\")","v":"Server"},323,{"$f":"IFERROR(VLOOKUP(I323,E:H,4,FALSE),0)","v":0},{"$f":"COUNTIF($B$6:$B$105, \"<=\"&$B316)","v":71},1,"",null,0,1,"",null,0,1,""]
["bh","Browser Height",null,null,{"$error":"#REF!"},{"$f":"IF(B317<>\"\",ROW(F324),\"\")","v":324},{"$f":"IF(F324<>\"\",A317,\"\")","v":"events"},{"$f":"IF(B317<>\"\",B317,\"\")","v":"Events"},324,0,{"$f":"COUNTIF($B$6:$B$105, \"<=\"&$B317)","v":58},1,"",null,0,1,"",null,0,1,""]
["s","Screen Resolution",null,null,{"$error":"#REF!"},{"$f":"IF(B313<>\"\",ROW(F325),\"\")","v":325},{"$f":"IF(F325<>\"\",A313,\"\")","v":"pageName"},{"$f":"IF(B313<>\"\",B313,\"\")","v":"Page Name"},325,0,{"$f":"COUNTIF($B$6:$B$105, \"<=\"&$B313)","v":66},1,"",null,0,1,"",null,0,1,""]
["products","Products",null,null,{"$error":"#REF!"},{"$f":"IF(#REF!<>\"\",ROW(F326),\"\")","v":{"$error":"#REF!"}},{"$f":"IF(F326<>\"\",#REF!,\"\")","v":{"$error":"#REF!"}},{"$f":"IF(#REF!<>\"\",#REF!,\"\")","v":{"$error":"#REF!"}},326,0,{"$f":"COUNTIF($B$6:$B$105, \"<=\"&#REF!)","v":0},1,{"$f":"IFERROR(INDEX($A$6:$A$105,MATCH(L326,$K$6:$K$105,0)),\"\")","v":""},null,0,1,{"$f":"IFERROR(INDEX($A$108:$A$207,MATCH(P326,$O$6:$O$105,0)),\"\")","v":""},null,0,1,{"$f":"IFERROR(INDEX($A$210:$A$310,MATCH(T326,$S$6:$S$105,0)),\"\")","v":""}]
["p","Plugins",null,null,{"$error":"#REF!"},{"$f":"IF(#REF!<>\"\",ROW(F327),\"\")","v":{"$error":"#REF!"}},{"$f":"IF(F327<>\"\",#REF!,\"\")","v":{"$error":"#REF!"}},{"$f":"IF(#REF!<>\"\",#REF!,\"\")","v":{"$error":"#REF!"}},327,0,{"$f":"COUNTIF($B$6:$B$105, \"<=\"&#REF!)","v":0},1,"",null,{"$f":"COUNTIF($B$108:$B$207, \"<=\"&$B429)","v":0},1,"",null,0,1,""]
["g","Current Url",null,null,{"$error":"#REF!"},{"$f":"IF(#REF!<>\"\",ROW(F328),\"\")","v":{"$error":"#REF!"}},{"$f":"IF(F328<>\"\",#REF!,\"\")","v":{"$error":"#REF!"}},{"$f":"IF(#REF!<>\"\",#REF!,\"\")","v":{"$error":"#REF!"}},328,0,{"$f":"COUNTIF($B$6:$B$105, \"<=\"&#REF!)","v":0},1,"",null,0,1,"",null,0,1,""]
["r","Referring Url"]
["cc","Currency Code"]
["c","Color Depth"]
["j","Javascript Version"]
["v","Javascript Enabled"]
["k","Cookies Supported"]
["t","Time/Date"]